Workbook

Sheet 1. Info
AB1: Algoma Power Inc.
AB2: Atikokan Hydro Inc.
AB3: Attawapiskat Power Corporation
AB4: Bluewater Power Distribution Corporation
AB5: Brant County Power Inc.
AB6: Brantford Power Inc.
AB7: Burlington Hydro Inc.
AB8: Cambridge and North Dumfries Hydro Inc.
AB9: Canadian Niagara Power Inc.
AB10: Centre Wellington Hydro Ltd.
AB11: Chapleau Public Utilities Corporation
AB12: COLLUS PowerStream Corp.
A13: Drop-down lists are shaded blue; Input cells are shaded green. | AB13: Cooperative Hydro Embrun Inc.
AB14: E.L.K. Energy Inc.
C15: Utility Name | D15: Rideau St. Lawrence Distribution Inc. | AB15: Enersource Hydro Mississauga Inc.
AB16: Entegrus Powerlines Inc.
C17: Service Territory | AB17: EnWin Utilities Ltd.
AB18: Erie Thames Powerlines Corporation
C19: Assigned EB Number | D19: EB-2015-0100 | AB19: Espanola Regional Hydro Distribution Corporation
AB20: Essex Powerlines Corporation
C21: Name and Title | D21: Peter Soules, Chief Financial Officer | AB21: Festival Hydro Inc.
AB22: Fort Albany Power Corporation
C23: Phone Number | D23: (613) 925-3851 | AB23: Fort Frances Power Corporation
AB24: Greater Sudbury Hydro Inc.
C25: Email Address | D25: psoules@rslu.ca | AB25: Grimsby Power Inc.
AB26: Guelph Hydro Electric Systems Inc.
C27: Date | AB27: Haldimand County Hydro Inc.
AB28: Halton Hills Hydro Inc.
C29: Last COS Re-based Year | D29: 2012 | AB29: Hearst Power Distribution Company Limited
AB30: Horizon Utilities Corporation
AB31: Hydro 2000 Inc.
AB32: Hydro Hawkesbury Inc.
AB33: Hydro One Brampton Networks Inc.
AB34: Hydro One Networks Inc.
AB35: Hydro One Remote Communities Inc.
AB36: Hydro Ottawa Limited
AB37: Innpower Corporation
AB38: Kashechewan Power Corporation
AB39: Kenora Hydro Electric Corporation Ltd.
AB40: Kingston Hydro Corporation
AB41: Kitchener-Wilmot Hydro Inc.
AB42: Lakefront Utilities Inc.
AB43: Lakeland Power Distribution Ltd.
AB44: London Hydro Inc.
AB45: Midland Power Utility Corporation
AB46: Milton Hydro Distribution Inc.
AB47: Newmarket-Tay Power Distribution Ltd.
AB48: Niagara Peninsula Energy Inc.
AB49: Niagara-on-the-Lake Hydro Inc.
AB50: Norfolk Power Distribution Inc.
AB51: North Bay Hydro Distribution Limited
AB52: Northern Ontario Wires Inc.
AB53: Oakville Hydro Electricity Distribution Inc.
AB54: Orangeville Hydro Limited
AB55: Orillia Power Distribution Corporation
AB56: Oshawa PUC Networks Inc.
AB57: Ottawa River Power Corporation
AB58: Peterborough Distribution Incorporated
AB59: PowerStream Inc.
AB60: PUC Distribution Inc.
AB61: Renfrew Hydro Inc.
AB62: Rideau St. Lawrence Distribution Inc.
AB63: Sioux Lookout Hydro Inc.
AB64: St. Thomas Energy Inc.
AB65: Thunder Bay Hydro Electricity Distribution Inc.
AB66: Tillsonburg Hydro Inc.
AB67: Toronto Hydro-Electric System Limited
AB68: Veridian Connections Inc.
AB69: Wasaga Distribution Inc.
AB70: Waterloo North Hydro Inc.
AB71: Welland Hydro-Electric System Corp.
AB72: Wellington North Power Inc.
AB73: West Coast Huron Energy Inc.
AB74: Westario Power Inc.
AB75: Whitby Hydro Electric Corporation
AB76: Woodstock Hydro Services Inc.

Sheet 2. Table of Contents
D20: 1. Info | I20: 6. Historical Wholesale
D22: 2. Table of Contents | I22: 7. Current Wholesale
D24: 3. Rate Classes | I24: 8. Forecast Wholesale
D26: 4. RRR Data | I26: 9. RTSR Rates to Forecast
D28: 5. UTRs and Sub-Transmission

Sheet 3. Rate Classes
C13: 1. Select the appropriate rate classes that appear on your most recent Board-Approved Tariff of Rates and Charges. 2. Enter the RTS Network and Connection Rate as it appears on the Tariff of Rates and Charges
C15: Rate Class | E15: Unit | G15: RTSR-Network | I15: RTSR-Connection
C17: Residential | E17: kWh | G17: 0.0082 | I17: 0.0059 | L17: =IF(OR(ISBLANK(C17), ISERROR(FIND("Choose", C17))=FALSE), 0, 1) -> 1 | M17: ="C" & ROW(C17) -> C17 | N17: =IF(OR(C17="General Service Intermediate Rate Class 1,000 To 4,999 kW (formerly General Service > 50 kW Customers)", C17="General Service Intermediate Rate Class 1,000 To 4,999 kW (formerly Large Use Customers)"), "x", "") ->  | W17: Choose Rate Class
C18: General Service Less Than 50 kW | E18: kWh | G18: 0.0075 | I18: 0.0054 | L18: 1 | M18: C18 | N18: =IF(OR(C18="General Service Intermediate Rate Class 1,000 To 4,999 kW (formerly General Service > 50 kW Customers)", C18="General Service Intermediate Rate Class 1,000 To 4,999 kW (formerly Large Use Customers)"), "x", "") ->  | W18: Residential
C19: General Service 50 to 4,999 kW | E19: kW | G19: 3.1308 | I19: 2.1618 | L19: 1 | M19: C19 | W19: Residential Regular
C20: General Service 50 to 4,999 kW – Interval Metered | E20: kW | G20: 3.4979 | I20: 2.4096 | L20: 1 | M20: C20 | W20: Residential Urban
C21: Unmetered Scattered Load | E21: kWh | G21: 0.0075 | I21: 0.0054 | L21: 1 | M21: C21 | W21: Residential Urban Year-Round
C22: Sentinel Lighting | E22: kW | G22: 2.3731 | I22: 1.7061 | L22: 1 | M22: C22 | W22: Residential Suburban
C23: Street Lighting | E23: kW | G23: 2.3611 | I23: 1.6714 | L23: 1 | M23: C23 | W23: Residential Suburban Seasonal
C24: Choose Rate Class | L24: 0 | M24: C24 | W24: Residential Suburban Year Round
C25: Choose Rate Class | L25: 0 | M25: C25 | W25: Residential - Time of Use
C26: Choose Rate Class | L26: 0 | M26: C26 | W26: Residential - Hensall
C27: Choose Rate Class | L27: 0 | M27: C27 | W27: Residential – High Density [R1]
C28: Choose Rate Class | L28: 0 | M28: C28 | W28: Residential – Normal Density [R2]
C29: Choose Rate Class | L29: 0 | M29: C29 | W29: Seasonal Residential – High Density [R3]
C30: Choose Rate Class | L30: 0 | M30: C30 | W30: Seasonal Residential – Normal Density [R4]
C31: Choose Rate Class | L31: 0 | M31: C31 | W31: Residential – Urban [UR]
C32: Choose Rate Class | L32: 0 | M32: C32 | W32: General Service Less Than 50 kW
C33: Choose Rate Class | L33: 0 | M33: C33 | W33: General Service Less Than 50 kW – Single Phase energy-billed [G1]
C34: Choose Rate Class | L34: 0 | M34: C34 | W34: General Service Less Than 50 kW – Three Phase energy-billed [G3]
C35: Choose Rate Class | L35: 0 | M35: C35 | W35: General Service Less Than 50 kW – Transmission Class energy-billed [T]
C36: Choose Rate Class | L36: 0 | M36: C36 | W36: General Service Less Than 50 kW – Urban energy-billed [UG]
C37: Choose Rate Class | L37: 0 | M37: C37 | W37: Westport Sewage Treatment Plant
C38: Choose Rate Class | L38: 0 | M38: C38 | W38: Small Commercial and USL - per meter
N39: =COUNTIF(N17:N38, "x") -> 0 | W39: Small Commercial and USL - per connection
W40: Farms – Single Phase energy-billed [F1]
W41: General Service 50 to 499 kW
W42: General Service 50 to 699 kW
W43: General Service 50 to 999 kW
W44: General Service 50 to 999 kW - Interval Metered
W45: General Service 50 to 1,000 kW
W46: General Service 50 to 1,000 kW - Interval Meters
W47: General Service 50 to 1,000 kW - Non Interval Meters
W48: General Service 50 to 1,499 kW
W49: General Service 50 to 1,499 kW - Interval Metered
W50: General Service 50 to 2,499 kW
W51: General Service 50 to 2,999 kW
W52: General Service 50 to 2,999 kW - Time of Use
W53: General Service 50 to 4,999 kW
W54: General Service 50 to 4,999 kW – Interval Metered
W55: General Service 50 to 4,999 kW - Time of Use
W56: General Service 50 to 4,999 kW (CoGeneration)
W57: General Service 50 to 4,999 kW (formerly Time of Use)
W58: General Service 500 to 4,999 kW
W59: General Service 700 to 4,999 kW
W60: General Service 1,000 to 2,999 kW
W61: General Service 1,000 to 4,999 kW
W62: General Service 1,000 to 4,999 kW - Interval Meters
W63: General Service 1,000 To 4,999 kW (co-generation)
W64: General Service Greater Than 1,000 kW
W65: General Service Intermediate Rate Class 1,000 To 4,999 kW (formerly Large Use Customers)
W66: General Service Intermediate Rate Class 1,000 To 4,999 kW (formerly General Service > 50 kW Customers)
W67: General Service 1,500 to 4,999 kW
W68: General Service Equal To Or Greater Than 1,500 kW
W69: General Service Equal To Or Greater Than 1,500 kW - Interval Metered
W70: General Service Intermediate 1,000 To 4,999 kW
W71: General Service 2,500 to 4,999 kW
W72: General Service 3,000 to 4,999 kW
W73: General Service 3,000 to 4,999 kW - Interval Metered
W74: General Service 3,000 to 4,999 kW - Intermediate Use
W75: General Service 3,000 to 4,999 kW - Time of Use
W76: Intermediate With Self Generation
W77: General Service - Commercial
W78: General Service - Institutional
W79: Farms – Three Phase energy-billed [F3]
W80: Large Use
W81: Large Use - Regular
W82: Large Use > 5000 kW
W83: Large Use - 3TS
W84: Large Use - Ford Annex
W85: Unmetered Scattered Load
W86: Sentinel Lighting
W87: Street Lighting
W88: Embedded Distributor
W89: Low Voltage Wheeling Charge Rate
W90: Stand-By
W91: Standby Power
W92: Standby Power – INTERIM APPROVAL
W93: Standby Power - APPROVED ON AN INTERIM BASIS
W94: Standby - General Service 50 - 1,000 kW
W95: Standby Power General Service 50 to 1,499 kW
W96: Standby - General Service 1,000 - 5,000 kW
W97: Standby Power General Service 1,500 to 4,999 kW
W98: Standby - Large Use
W99: Standby Power General Service Large Use
W100: Standby Distribution Service

Sheet 4. RRR Data
B15: Rate Class | C15: Rate Description | D15: Unit | E15: Rate | F15: Non-Loss Adjusted Metered kWh | G15: Non-Loss Adjusted Metered kW | H15: Applicable Loss Factor eg: (1.0325) | I15: Loss Adjusted Billed kWh
B17: Residential | C17: RTSR - Network | D17: kWh | E17: 0.0082 | F17: 40938310.96 | H17: 1.0797 | I17: =F17*H17 -> 44201094.34
B18: Residential | C18: RTSR - Connection | D18: kWh | E18: 0.0059 | F18: 40938310.96 | H18: 1.0797 | I18: =F18*H18 -> 44201094.34
B19: General Service Less Than 50 kW | C19: RTSR - Network | D19: kWh | E19: 0.0075 | F19: 20653133 | H19: 1.0797 | I19: =F19*H19 -> 22299187.7
B20: General Service Less Than 50 kW | C20: RTSR - Connection | D20: kWh | E20: 0.0054 | F20: 20653133 | H20: 1.0797 | I20: =F20*H20 -> 22299187.7
B21: General Service 50 to 4,999 kW | C21: RTSR - Network | D21: kW | E21: 3.1308 | F21: 37205582 | G21: 115031.54
B22: General Service 50 to 4,999 kW | C22: RTSR - Connection | D22: kW | E22: 2.1618 | F22: 37205582 | G22: 115031.54
B23: General Service 50 to 4,999 kW – Interval Metered | C23: RTSR - Network | D23: kW | E23: 3.4979 | F23: 3712495 | G23: 10702.9
B24: General Service 50 to 4,999 kW – Interval Metered | C24: RTSR - Connection | D24: kW | E24: 2.4096 | F24: 3712495 | G24: 10702.9
B25: Unmetered Scattered Load | C25: RTSR - Network | D25: kWh | E25: 0.0075 | F25: 543571 | H25: 1.0797 | I25: =F25*H25 -> 586893.6087
B26: Unmetered Scattered Load | C26: RTSR - Connection | D26: kWh | E26: 0.0054 | F26: 543571 | H26: 1.0797 | I26: =F26*H26 -> 586893.6087
B27: Sentinel Lighting | C27: RTSR - Network | D27: kW | E27: 2.3731 | F27: 109502 | G27: 302
B28: Sentinel Lighting | C28: RTSR - Connection | D28: kW | E28: 1.7061 | F28: 109502 | G28: 302
B29: Street Lighting | C29: RTSR - Network | D29: kW | E29: 2.3611 | F29: 1052678 | G29: 2861.6
B30: Street Lighting | C30: RTSR - Connection | D30: kW | E30: 1.6714 | F30: 1052678 | G30: 2861.6

Sheet 5. UTRs and Sub-Transmission
B18: Uniform Transmission Rates | C18: Unit | E18: Effective January 1, 2014 | G18: Effective January 1, 2015 | I18: Effective January 1, 2016
B20: Rate Description | E20: Rate | G20: Rate | I20: Rate
B22: Network Service Rate | C22: kW | E22: 3.82 | G22: 3.78 | I22: 3.66
B24: Line Connection Service Rate | C24: kW | E24: 0.82 | G24: 0.86 | I24: 0.87
B26: Transformation Connection Service Rate | C26: kW | E26: 1.98 | G26: 2 | I26: 2.02
B29: Hydro One Sub-Transmission Rates | C29: Unit | E29: Effective January 1, 2014 to April 30, 2015 | G29: Effective May 1, 2015 | I29: Effective January 1, 2016
B33: Rate Description | E33: Rate | G33: Rate | I33: Rate
B35: Network Service Rate | C35: kW | E35: 3.23 | G35: 3.4121 | I35: 3.4121
B37: Line Connection Service Rate | C37: kW | E37: 0.65 | G37: 0.7879 | I37: 0.7879
B39: Transformation Connection Service Rate | C39: kW | E39: 1.62 | G39: 1.8018 | I39: 1.8018
B41: Both Line and Transformation Connection Service Rate | C41: kW | E41: =SUM(E39,E37) -> 2.27 | G41: =SUM(G39,G37) -> 2.5897 | I41: =SUM(I39,I37) -> 2.5897
B44: If needed, add extra host here. (I) | C44: Unit | E44: Effective January 1, 2014 | G44: Effective January 1, 2015 | I44: Effective January 1, 2016
B48: Rate Description | E48: Rate | G48: Rate | I48: Rate
B50: Network Service Rate | C50: kW
B52: Line Connection Service Rate | C52: kW
B54: Transformation Connection Service Rate | C54: kW
B56: Both Line and Transformation Connection Service Rate | C56: kW | E56: =SUM(E52,E54) -> 0 | G56: =SUM(G52,G54) -> 0 | I56: =I54+I52 -> 0
B59: If needed, add extra host here. (II) | C59: Unit | E59: Effective January 1, 2014 | G59: Effective January 1, 2015 | I59: Effective January 1, 2016
B63: Rate Description | E63: Rate | G63: Rate | I63: Rate
B65: Network Service Rate | C65: kW
B67: Line Connection Service Rate | C67: kW
B69: Transformation Connection Service Rate | C69: kW
B71: Both Line and Transformation Connection Service Rate | C71: kW | E71: =SUM(E67,E69) -> 0 | G71: =SUM(G67,G69) -> 0 | I71: =I69+I67 -> 0
B75: Hydro One Sub-Transmission Rate Rider 9A | C75: Unit | E75: Effective January 1, 2014 | G75: Effective January 1, 2015 | I75: Effective January 1, 2016
B77: Rate Description | E77: Rate | G77: Rate | I77: Rate
B79: RSVA Transmission network – 4714 – which affects 1584 | C79: kW | E79: 0.1465 | G79: 0 | I79: 0
B81: RSVA Transmission connection – 4716 – which affects 1586 | C81: kW | E81: 0.0667 | G81: 0 | I81: 0
B83: RSVA LV – 4750 – which affects 1550 | C83: kW | E83: 0.0475 | G83: 0 | I83: 0
B85: RARA 1 – 2252 – which affects 1590 | C85: kW | E85: 0.0419 | G85: 0 | I85: 0
B87: RARA 1 – 2252 – which affects 1590 (2008) | C87: kW | E87: -0.027 | G87: 0 | I87: 0
B89: RARA 1 – 2252 – which affects 1590 (2009) | C89: kW | E89: -0.0006 | G89: 0 | I89: 0
B91: Hydro One Sub-Transmission Rate Rider 9A | C91: kW | E91: 0.275 | G91: 0 | I91: =SUM(I79:I89) -> 0
E94: Historical 2014 | G94: Current 2015 | I94: Forecast 2016
B95: Low Voltage Switchgear Credit (if applicable, enter as a negative value) | C95: $

Sheet 6. Historical Wholesale
B21: IESO | D21: Network | H21: Line Connection | L21: Transformation Connection | P21: Total Line
B22: Month | D22: Units Billed | E22: Rate | F22: Amount | H22: Units Billed | I22: Rate | J22: Amount | L22: Units Billed | M22: Rate | N22: Amount | P22: Amount
B24: January | E24: =IF(D24<>0,F24/D24,0) -> 0 | I24: =IF(H24<>0,J24/H24,0) -> 0 | M24: =IF(L24<>0,N24/L24,0) -> 0 | P24: =J24+N24 -> 0
B25: February | E25: =IF(D25<>0,F25/D25,0) -> 0 | I25: =IF(H25<>0,J25/H25,0) -> 0 | M25: =IF(L25<>0,N25/L25,0) -> 0 | P25: 0
B26: March | E26: 0 | I26: 0 | M26: 0 | P26: 0
B27: April | E27: 0 | I27: 0 | M27: 0 | P27: 0
B28: May | E28: 0 | I28: 0 | M28: 0 | P28: 0
B29: June | E29: 0 | I29: 0 | M29: 0 | P29: 0
B30: July | E30: 0 | I30: 0 | M30: 0 | P30: 0
B31: August | E31: 0 | I31: 0 | M31: 0 | P31: 0
B32: September | E32: 0 | I32: 0 | M32: 0 | P32: 0
B33: October | E33: 0 | I33: 0 | M33: 0 | P33: 0
B34: November | E34: 0 | I34: 0 | M34: 0 | P34: 0
B35: December | E35: 0 | I35: 0 | M35: 0 | P35: 0
B37: Total | D37: =SUM(D24:D35) -> 0 | E37: =IF(D37<>0,F37/D37,0) -> 0 | F37: =SUM(F24:F35) -> 0 | H37: =SUM(H24:H35) -> 0 | I37: =IF(H37<>0,J37/H37,0) -> 0 | J37: =SUM(J24:J35) -> 0 | L37: =SUM(L24:L35) -> 0 | M37: =IF(L37<>0,N37/L37,0) -> 0 | N37: =SUM(N24:N35) -> 0 | P37: =SUM(P24:P35) -> 0
B39: Hydro One | D39: Network | H39: Line Connection | L39: Transformation Connection | P39: Total Line
B41: Month | D41: Units Billed | E41: Rate | F41: Amount | H41: Units Billed | I41: Rate | J41: Amount | L41: Units Billed | M41: Rate | N41: Amount | P41: Amount
B43: January | D43: ='[3] for RTSR'!B29 -> 24949.49864 | E43: =IF(D43<>0,F43/D43,0) -> 3.23 | F43: ='[3] for RTSR'!D29 -> 80586.8806 | H43: ='[3] for RTSR'!E29 -> 25102.7079 | I43: =IF(H43<>0,J43/H43,0) -> 0.65 | J43: ='[3] for RTSR'!G29 -> 16316.76013 | L43: =H43 -> 25102.7079 | M43: =IF(L43<>0,N43/L43,0) -> 1.62 | N43: ='[3] for RTSR'!J29 -> 40666.38679 | P43: =J43+N43 -> 56983.14692
B44: February | D44: ='[3] for RTSR'!B30 -> 21762.9332 | E44: =IF(D44<>0,F44/D44,0) -> 3.23 | F44: ='[3] for RTSR'!D30 -> 70294.27423 | H44: ='[3] for RTSR'!E30 -> 21765.83612 | I44: =IF(H44<>0,J44/H44,0) -> 0.65 | J44: ='[3] for RTSR'!G30 -> 14147.79348 | L44: =H44 -> 21765.83612 | M44: =IF(L44<>0,N44/L44,0) -> 1.62 | N44: ='[3] for RTSR'!J30 -> 35260.65452 | P44: 49408.448
B45: March | D45: ='[3] for RTSR'!B31 -> 20658.37136 | E45: 3.23 | F45: ='[3] for RTSR'!D31 -> 66726.5395 | H45: ='[3] for RTSR'!E31 -> 25598.05799 | I45: 0.65 | J45: ='[3] for RTSR'!G31 -> 16638.73769 | L45: 25598.05799 | M45: 1.62 | N45: ='[3] for RTSR'!J31 -> 41468.85395 | P45: 58107.59164
B46: April | D46: ='[3] for RTSR'!B32 -> 21516.41299 | E46: 3.23 | F46: ='[3] for RTSR'!D32 -> 69498.01397 | H46: ='[3] for RTSR'!E32 -> 21516.41078 | I46: 0.65 | J46: ='[3] for RTSR'!G32 -> 13985.667 | L46: 21516.41078 | M46: 1.62 | N46: ='[3] for RTSR'!J32 -> 34856.58546 | P46: 48842.25246
B47: May | D47: ='[3] for RTSR'!B33 -> 17634.12239 | E47: 3.4121 | F47: ='[3] for RTSR'!D33 -> 60169.38902 | H47: ='[3] for RTSR'!E33 -> 17652.53955 | I47: 0.7879 | J47: ='[3] for RTSR'!G33 -> 13908.43591 | L47: 17652.53955 | M47: 1.8018 | N47: ='[3] for RTSR'!J33 -> 31806.34575 | P47: 45714.78166
B48: June | D48: ='[3] for RTSR'!B34 -> 16643.67001 | E48: 3.4121 | F48: ='[3] for RTSR'!D34 -> 56789.86644 | H48: ='[3] for RTSR'!E34 -> 16659.57672 | I48: 0.7879 | J48: ='[3] for RTSR'!G34 -> 13126.0805 | L48: 16659.57672 | M48: 1.8018 | N48: ='[3] for RTSR'!J34 -> 30017.22533 | P48: 43143.30582
B49: July | D49: ='[3] for RTSR'!B35 -> 22064.7302 | E49: 3.4121 | F49: ='[3] for RTSR'!D35 -> 75287.0659 | H49: ='[3] for RTSR'!E35 -> 25796.01049 | I49: 0.7879 | J49: ='[3] for RTSR'!G35 -> 20324.67666 | L49: 25796.01049 | M49: 1.8018 | N49: ='[3] for RTSR'!J35 -> 46479.2517 | P49: 66803.92836
B50: August | D50: ='[3] for RTSR'!B36 -> 24229.16714 | E50: 3.4121 | F50: ='[3] for RTSR'!D36 -> 82672.3412 | H50: ='[3] for RTSR'!E36 -> 24229.16764 | I50: 0.7879 | J50: ='[3] for RTSR'!G36 -> 19090.16118 | L50: 24229.16764 | M50: 1.8018 | N50: ='[3] for RTSR'!J36 -> 43656.11425 | P50: 62746.27543
B51: September | D51: ='[3] for RTSR'!B37 -> 19834.41916 | E51: 3.4121 | F51: ='[3] for RTSR'!D37 -> 67677.02163 | H51: ='[3] for RTSR'!E37 -> 19885.12567 | I51: 0.7879 | J51: ='[3] for RTSR'!G37 -> 15667.49052 | L51: 19885.12567 | M51: 1.8018 | N51: ='[3] for RTSR'!J37 -> 35829.01944 | P51: 51496.50995
B52: October | D52: ='[3] for RTSR'!B38 -> 22034.01068 | E52: 3.4121 | F52: ='[3] for RTSR'!D38 -> 75182.24785 | H52: ='[3] for RTSR'!E38 -> 22047.35049 | I52: 0.7879 | J52: ='[3] for RTSR'!G38 -> 17371.10745 | L52: 22047.35049 | M52: 1.8018 | N52: ='[3] for RTSR'!J38 -> 39724.91612 | P52: 57096.02357
B53: November | D53: ='[3] for RTSR'!B39 -> 18676.25344 | E53: 3.4121 | F53: ='[3] for RTSR'!D39 -> 63725.24435 | H53: ='[3] for RTSR'!E39 -> 18718.35958 | I53: 0.7879 | J53: ='[3] for RTSR'!G39 -> 14748.19551 | L53: 18718.35958 | M53: 1.8018 | N53: ='[3] for RTSR'!J39 -> 33726.74029 | P53: 48474.93581
B54: December | D54: ='[3] for RTSR'!B40 -> 21295.01548 | E54: 3.4121 | F54: ='[3] for RTSR'!D40 -> 72660.72232 | H54: ='[3] for RTSR'!E40 -> 21335.11699 | I54: 0.7879 | J54: ='[3] for RTSR'!G40 -> 16809.93868 | L54: 21335.11699 | M54: 1.8018 | N54: ='[3] for RTSR'!J40 -> 38441.61379 | P54: 55251.55247
B56: Total | D56: =SUM(D43:D54) -> 251298.6047 | E56: =IF(D56<>0,F56/D56,0) -> 3.347689129 | F56: =SUM(F43:F54) -> 841269.607 | H56: =SUM(H43:H54) -> 260306.2599 | I56: =IF(H56<>0,J56/H56,0) -> 0.7381115029 | J56: =SUM(J43:J54) -> 192135.0447 | L56: =SUM(L43:L54) -> 260306.2599 | M56: =IF(L56<>0,N56/L56,0) -> 1.736161503 | N56: =SUM(N43:N54) -> 451933.7074 | P56: =SUM(P43:P54) -> 644068.7521
B58: Add Extra Host Here (I) | D58: Network | H58: Line Connection | L58: Transformation Connection | P58: Total Line
B59: (if needed)
B60: Month | D60: Units Billed | E60: Rate | F60: Amount | H60: Units Billed | I60: Rate | J60: Amount | L60: Units Billed | M60: Rate | N60: Amount | P60: Amount
B62: January | E62: =IF(D62<>0,F62/D62,0) -> 0 | I62: =IF(H62<>0,J62/H62,0) -> 0 | M62: =IF(L62<>0,N62/L62,0) -> 0 | P62: =J62+N62 -> 0
B63: February | E63: 0 | I63: 0 | M63: 0 | P63: 0
B64: March | E64: 0 | I64: 0 | M64: 0 | P64: 0
B65: April | E65: 0 | I65: 0 | M65: 0 | P65: 0
B66: May | E66: 0 | I66: 0 | M66: 0 | P66: 0
B67: June | E67: 0 | I67: 0 | M67: 0 | P67: 0
B68: July | E68: 0 | I68: 0 | M68: 0 | P68: 0
B69: August | E69: 0 | I69: 0 | M69: 0 | P69: 0
B70: September | E70: 0 | I70: 0 | M70: 0 | P70: 0
B71: October | E71: 0 | I71: 0 | M71: 0 | P71: 0
B72: November | E72: 0 | I72: 0 | M72: 0 | P72: 0
B73: December | E73: 0 | I73: 0 | M73: 0 | P73: 0
B75: Total | D75: =SUM(D62:D73) -> 0 | E75: =IF(D75<>0,F75/D75,0) -> 0 | F75: =SUM(F62:F73) -> 0 | H75: =SUM(H62:H73) -> 0 | I75: =IF(H75<>0,J75/H75,0) -> 0 | J75: =SUM(J62:J73) -> 0 | L75: =SUM(L62:L73) -> 0 | M75: =IF(L75<>0,N75/L75,0) -> 0 | N75: =SUM(N62:N73) -> 0 | P75: =SUM(P62:P73) -> 0
B77: Add Extra Host Here (II) | D77: Network | H77: Line Connection | L77: Transformation Connection | P77: Total Line
B78: (if needed)
B79: Month | D79: Units Billed | E79: Rate | F79: Amount | H79: Units Billed | I79: Rate | J79: Amount | L79: Units Billed | M79: Rate | N79: Amount | P79: Amount
B81: January | E81: =IF(D81<>0,F81/D81,0) -> 0 | I81: =IF(H81<>0,J81/H81,0) -> 0 | M81: =IF(L81<>0,N81/L81,0) -> 0 | P81: =J81+N81 -> 0
B82: February | E82: 0 | I82: 0 | M82: 0 | P82: 0
B83: March | E83: 0 | I83: 0 | M83: 0 | P83: 0
B84: April | E84: 0 | I84: 0 | M84: 0 | P84: 0
B85: May | E85: 0 | I85: 0 | M85: 0 | P85: 0
B86: June | E86: 0 | I86: 0 | M86: 0 | P86: 0
B87: July | E87: 0 | I87: 0 | M87: 0 | P87: 0
B88: August | E88: 0 | I88: 0 | M88: 0 | P88: 0
B89: September | E89: 0 | I89: 0 | M89: 0 | P89: 0
B90: October | E90: 0 | I90: 0 | M90: 0 | P90: 0
B91: November | E91: 0 | I91: 0 | M91: 0 | P91: 0
B92: December | E92: 0 | I92: 0 | M92: 0 | P92: 0
B94: Total | D94: =SUM(D81:D92) -> 0 | E94: =IF(D94<>0,F94/D94,0) -> 0 | F94: =SUM(F81:F92) -> 0 | H94: =SUM(H81:H92) -> 0 | I94: =IF(H94<>0,J94/H94,0) -> 0 | J94: =SUM(J81:J92) -> 0 | L94: =SUM(L81:L92) -> 0 | M94: =IF(L94<>0,N94/L94,0) -> 0 | N94: =SUM(N81:N92) -> 0 | P94: =SUM(P81:P92) -> 0
B96: Total | D96: Network | H96: Line Connection | L96: Transformation Connection | P96: Total Line
B98: Month | D98: Units Billed | E98: Rate | F98: Amount | H98: Units Billed | I98: Rate | J98: Amount | L98: Units Billed | M98: Rate | N98: Amount | P98: Amount
B100: January | D100: =D24+D43+D62+D81 -> 24949.49864 | E100: =IF(D100<>0,F100/D100,0) -> 3.23 | F100: =F24+F43+F62+F81 -> 80586.8806 | H100: =H24+H43+H62+H81 -> 25102.7079 | I100: =IF(H100<>0,J100/H100,0) -> 0.65 | J100: =J24+J43+J62+J81 -> 16316.76013 | L100: =L24+L43+L62+L81 -> 25102.7079 | M100: =IF(L100<>0,N100/L100,0) -> 1.62 | N100: =N24+N43+N62+N81 -> 40666.38679 | P100: =J100+N100 -> 56983.14692
B101: February | D101: =D25+D44+D63+D82 -> 21762.9332 | E101: 3.23 | F101: =F25+F44+F63+F82 -> 70294.27423 | H101: =H25+H44+H63+H82 -> 21765.83612 | I101: 0.65 | J101: =J25+J44+J63+J82 -> 14147.79348 | L101: =L25+L44+L63+L82 -> 21765.83612 | M101: 1.62 | N101: =N25+N44+N63+N82 -> 35260.65452 | P101: 49408.448
B102: March | D102: 20658.37136 | E102: 3.23 | F102: 66726.5395 | H102: 25598.05799 | I102: 0.65 | J102: 16638.73769 | L102: 25598.05799 | M102: 1.62 | N102: 41468.85395 | P102: 58107.59164
B103: April | D103: 21516.41299 | E103: 3.23 | F103: 69498.01397 | H103: 21516.41078 | I103: 0.65 | J103: 13985.667 | L103: 21516.41078 | M103: 1.62 | N103: 34856.58546 | P103: 48842.25246
B104: May | D104: 17634.12239 | E104: 3.4121 | F104: 60169.38902 | H104: 17652.53955 | I104: 0.7879 | J104: 13908.43591 | L104: 17652.53955 | M104: 1.8018 | N104: 31806.34575 | P104: 45714.78166
B105: June | D105: 16643.67001 | E105: 3.4121 | F105: 56789.86644 | H105: 16659.57672 | I105: 0.7879 | J105: 13126.0805 | L105: 16659.57672 | M105: 1.8018 | N105: 30017.22533 | P105: 43143.30582
B106: July | D106: 22064.7302 | E106: 3.4121 | F106: 75287.0659 | H106: 25796.01049 | I106: 0.7879 | J106: 20324.67666 | L106: 25796.01049 | M106: 1.8018 | N106: 46479.2517 | P106: 66803.92836
B107: August | D107: 24229.16714 | E107: 3.4121 | F107: 82672.3412 | H107: 24229.16764 | I107: 0.7879 | J107: 19090.16118 | L107: 24229.16764 | M107: 1.8018 | N107: 43656.11425 | P107: 62746.27543
B108: September | D108: 19834.41916 | E108: 3.4121 | F108: 67677.02163 | H108: 19885.12567 | I108: 0.7879 | J108: 15667.49052 | L108: 19885.12567 | M108: 1.8018 | N108: 35829.01944 | P108: 51496.50995
B109: October | D109: 22034.01068 | E109: 3.4121 | F109: 75182.24785 | H109: 22047.35049 | I109: 0.7879 | J109: 17371.10745 | L109: 22047.35049 | M109: 1.8018 | N109: 39724.91612 | P109: 57096.02357
B110: November | D110: 18676.25344 | E110: 3.4121 | F110: 63725.24435 | H110: 18718.35958 | I110: 0.7879 | J110: 14748.19551 | L110: 18718.35958 | M110: 1.8018 | N110: 33726.74029 | P110: 48474.93581
B111: December | D111: 21295.01548 | E111: 3.4121 | F111: 72660.72232 | H111: 21335.11699 | I111: 0.7879 | J111: 16809.93868 | L111: 21335.11699 | M111: 1.8018 | N111: 38441.61379 | P111: 55251.55247
B113: Total | D113: =SUM(D100:D111) -> 251298.6047 | E113: =IF(D113<>0,F113/D113,0) -> 3.347689129 | F113: =SUM(F100:F111) -> 841269.607 | H113: =SUM(H100:H111) -> 260306.2599 | I113: =IF(H113<>0,J113/H113,0) -> 0.7381115029 | J113: =SUM(J100:J111) -> 192135.0447 | L113: =SUM(L100:L111) -> 260306.2599 | M113: =IF(L113<>0,N113/L113,0) -> 1.736161503 | N113: =SUM(N100:N111) -> 451933.7074 | P113: =SUM(P100:P111) -> 644068.7521
N115: Low Voltage Switchgear Credit (if applicable) | P115: ='5. UTRs and Sub-Transmission'!E95 -> 0
N117: Total including deduction for Low Voltage Switchgear Credit | P117: =P113+P115 -> 644068.7521

Sheet 7. Current Wholesale
B13: The purpose of this sheet is to calculate the expected billing when current 2015 Uniform Transmission Rates are applied against historical 2014 transmission units.
B20: IESO | D20: Network | H20: Line Connection | L20: Transformation Connection | P20: Total Line
B22: Month | D22: Units Billed | E22: Rate | F22: Amount | H22: Units Billed | I22: Rate | J22: Amount | L22: Units Billed | M22: Rate | N22: Amount | P22: Amount
B24: January | D24: ='6. Historical Wholesale'!D24 -> 0 | E24: ='5. UTRs and Sub-Transmission'!G22 -> 3.78 | F24: =D24*E24 -> 0 | H24: ='6. Historical Wholesale'!H24 -> 0 | I24: ='5. UTRs and Sub-Transmission'!G24 -> 0.86 | J24: =H24*I24 -> 0 | L24: ='6. Historical Wholesale'!L24 -> 0 | M24: ='5. UTRs and Sub-Transmission'!G26 -> 2 | N24: =L24*M24 -> 0 | P24: =J24+N24 -> 0
B25: February | D25: ='6. Historical Wholesale'!D25 -> 0 | E25: =E24 -> 3.78 | F25: =D25*E25 -> 0 | H25: ='6. Historical Wholesale'!H25 -> 0 | I25: =I24 -> 0.86 | J25: =H25*I25 -> 0 | L25: ='6. Historical Wholesale'!L25 -> 0 | M25: =M24 -> 2 | N25: =L25*M25 -> 0 | P25: 0
B26: March | D26: ='6. Historical Wholesale'!D26 -> 0 | E26: =E25 -> 3.78 | F26: 0 | H26: ='6. Historical Wholesale'!H26 -> 0 | I26: =I25 -> 0.86 | J26: 0 | L26: ='6. Historical Wholesale'!L26 -> 0 | M26: =M25 -> 2 | N26: 0 | P26: 0
B27: April | D27: ='6. Historical Wholesale'!D27 -> 0 | E27: 3.78 | F27: 0 | H27: ='6. Historical Wholesale'!H27 -> 0 | I27: 0.86 | J27: 0 | L27: ='6. Historical Wholesale'!L27 -> 0 | M27: 2 | N27: 0 | P27: 0
B28: May | D28: ='6. Historical Wholesale'!D28 -> 0 | E28: 3.78 | F28: 0 | H28: ='6. Historical Wholesale'!H28 -> 0 | I28: 0.86 | J28: 0 | L28: ='6. Historical Wholesale'!L28 -> 0 | M28: 2 | N28: 0 | P28: 0
B29: June | D29: ='6. Historical Wholesale'!D29 -> 0 | E29: 3.78 | F29: 0 | H29: ='6. Historical Wholesale'!H29 -> 0 | I29: 0.86 | J29: 0 | L29: ='6. Historical Wholesale'!L29 -> 0 | M29: 2 | N29: 0 | P29: 0
B30: July | D30: ='6. Historical Wholesale'!D30 -> 0 | E30: 3.78 | F30: 0 | H30: ='6. Historical Wholesale'!H30 -> 0 | I30: 0.86 | J30: 0 | L30: ='6. Historical Wholesale'!L30 -> 0 | M30: 2 | N30: 0 | P30: 0
B31: August | D31: ='6. Historical Wholesale'!D31 -> 0 | E31: 3.78 | F31: 0 | H31: ='6. Historical Wholesale'!H31 -> 0 | I31: 0.86 | J31: 0 | L31: ='6. Historical Wholesale'!L31 -> 0 | M31: 2 | N31: 0 | P31: 0
B32: September | D32: ='6. Historical Wholesale'!D32 -> 0 | E32: 3.78 | F32: 0 | H32: ='6. Historical Wholesale'!H32 -> 0 | I32: 0.86 | J32: 0 | L32: ='6. Historical Wholesale'!L32 -> 0 | M32: 2 | N32: 0 | P32: 0
B33: October | D33: ='6. Historical Wholesale'!D33 -> 0 | E33: 3.78 | F33: 0 | H33: ='6. Historical Wholesale'!H33 -> 0 | I33: 0.86 | J33: 0 | L33: ='6. Historical Wholesale'!L33 -> 0 | M33: 2 | N33: 0 | P33: 0
B34: November | D34: ='6. Historical Wholesale'!D34 -> 0 | E34: 3.78 | F34: 0 | H34: ='6. Historical Wholesale'!H34 -> 0 | I34: 0.86 | J34: 0 | L34: ='6. Historical Wholesale'!L34 -> 0 | M34: 2 | N34: 0 | P34: 0
B35: December | D35: ='6. Historical Wholesale'!D35 -> 0 | E35: 3.78 | F35: 0 | H35: ='6. Historical Wholesale'!H35 -> 0 | I35: 0.86 | J35: 0 | L35: ='6. Historical Wholesale'!L35 -> 0 | M35: 2 | N35: 0 | P35: 0
B37: Total | D37: =SUM(D24:D35) -> 0 | E37: =IF(D37<>0,F37/D37,0) -> 0 | F37: =SUM(F24:F35) -> 0 | H37: =SUM(H24:H35) -> 0 | I37: =IF(H37<>0,J37/H37,0) -> 0 | J37: =SUM(J24:J35) -> 0 | L37: =SUM(L24:L35) -> 0 | M37: =IF(L37<>0,N37/L37,0) -> 0 | N37: =SUM(N24:N35) -> 0 | P37: =SUM(P24:P35) -> 0
B39: Hydro One | D39: Network | H39: Line Connection | L39: Transformation Connection | P39: Total Line
B41: Month | D41: Units Billed | E41: Rate | F41: Amount | H41: Units Billed | I41: Rate | J41: Amount | L41: Units Billed | M41: Rate | N41: Amount | P41: Amount
B43: January | D43: ='6. Historical Wholesale'!D43 -> 24949.49864 | E43: ='5. UTRs and Sub-Transmission'!G35+'5. UTRs and Sub-Transmission'!G79 -> 3.4121 | F43: =D43*E43 -> 85130.1843 | H43: ='6. Historical Wholesale'!H43 -> 25102.7079 | I43: ='5. UTRs and Sub-Transmission'!G37+'5. UTRs and Sub-Transmission'!G81 -> 0.7879 | J43: =H43*I43 -> 19778.42355 | L43: ='6. Historical Wholesale'!L43 -> 25102.7079 | M43: ='5. UTRs and Sub-Transmission'!G39 -> 1.8018 | N43: =L43*M43 -> 45230.05909 | P43: =J43+N43 -> 65008.48264
B44: February | D44: ='6. Historical Wholesale'!D44 -> 21762.9332 | E44: =E43 -> 3.4121 | F44: =D44*E44 -> 74257.30437 | H44: ='6. Historical Wholesale'!H44 -> 21765.83612 | I44: =I43 -> 0.7879 | J44: =H44*I44 -> 17149.30228 | L44: ='6. Historical Wholesale'!L44 -> 21765.83612 | M44: =M43 -> 1.8018 | N44: =L44*M44 -> 39217.68353 | P44: 56366.98581
B45: March | D45: ='6. Historical Wholesale'!D45 -> 20658.37136 | E45: =E44 -> 3.4121 | F45: 70488.42893 | H45: ='6. Historical Wholesale'!H45 -> 25598.05799 | I45: =I44 -> 0.7879 | J45: 20168.70989 | L45: ='6. Historical Wholesale'!L45 -> 25598.05799 | M45: =M44 -> 1.8018 | N45: 46122.58089 | P45: 66291.29078
B46: April | D46: ='6. Historical Wholesale'!D46 -> 21516.41299 | E46: 3.4121 | F46: 73416.15277 | H46: ='6. Historical Wholesale'!H46 -> 21516.41078 | I46: 0.7879 | J46: 16952.78005 | L46: ='6. Historical Wholesale'!L46 -> 21516.41078 | M46: =M45 -> 1.8018 | N46: 38768.26894 | P46: 55721.04899
B47: May | D47: ='6. Historical Wholesale'!D47 -> 17634.12239 | E47: 3.4121 | F47: 60169.38902 | H47: ='6. Historical Wholesale'!H47 -> 17652.53955 | I47: 0.7879 | J47: 13908.43591 | L47: ='6. Historical Wholesale'!L47 -> 17652.53955 | M47: 1.8018 | N47: 31806.34575 | P47: 45714.78166
B48: June | D48: ='6. Historical Wholesale'!D48 -> 16643.67001 | E48: 3.4121 | F48: 56789.86644 | H48: ='6. Historical Wholesale'!H48 -> 16659.57672 | I48: 0.7879 | J48: 13126.0805 | L48: ='6. Historical Wholesale'!L48 -> 16659.57672 | M48: 1.8018 | N48: 30017.22533 | P48: 43143.30582
B49: July | D49: ='6. Historical Wholesale'!D49 -> 22064.7302 | E49: 3.4121 | F49: 75287.0659 | H49: ='6. Historical Wholesale'!H49 -> 25796.01049 | I49: 0.7879 | J49: 20324.67666 | L49: ='6. Historical Wholesale'!L49 -> 25796.01049 | M49: 1.8018 | N49: 46479.2517 | P49: 66803.92836
B50: August | D50: ='6. Historical Wholesale'!D50 -> 24229.16714 | E50: 3.4121 | F50: 82672.3412 | H50: ='6. Historical Wholesale'!H50 -> 24229.16764 | I50: 0.7879 | J50: 19090.16118 | L50: ='6. Historical Wholesale'!L50 -> 24229.16764 | M50: 1.8018 | N50: 43656.11425 | P50: 62746.27543
B51: September | D51: ='6. Historical Wholesale'!D51 -> 19834.41916 | E51: 3.4121 | F51: 67677.02163 | H51: ='6. Historical Wholesale'!H51 -> 19885.12567 | I51: 0.7879 | J51: 15667.49052 | L51: ='6. Historical Wholesale'!L51 -> 19885.12567 | M51: 1.8018 | N51: 35829.01944 | P51: 51496.50995
B52: October | D52: ='6. Historical Wholesale'!D52 -> 22034.01068 | E52: 3.4121 | F52: 75182.24785 | H52: ='6. Historical Wholesale'!H52 -> 22047.35049 | I52: 0.7879 | J52: 17371.10745 | L52: ='6. Historical Wholesale'!L52 -> 22047.35049 | M52: 1.8018 | N52: 39724.91612 | P52: 57096.02357
B53: November | D53: ='6. Historical Wholesale'!D53 -> 18676.25344 | E53: 3.4121 | F53: 63725.24435 | H53: ='6. Historical Wholesale'!H53 -> 18718.35958 | I53: 0.7879 | J53: 14748.19551 | L53: ='6. Historical Wholesale'!L53 -> 18718.35958 | M53: 1.8018 | N53: 33726.74029 | P53: 48474.93581
B54: December | D54: ='6. Historical Wholesale'!D54 -> 21295.01548 | E54: 3.4121 | F54: 72660.72232 | H54: ='6. Historical Wholesale'!H54 -> 21335.11699 | I54: 0.7879 | J54: 16809.93868 | L54: ='6. Historical Wholesale'!L54 -> 21335.11699 | M54: 1.8018 | N54: 38441.61379 | P54: 55251.55247
B56: Total | D56: =SUM(D43:D54) -> 251298.6047 | E56: =IF(D56<>0,F56/D56,0) -> 3.4121 | F56: =SUM(F43:F54) -> 857455.9691 | H56: =SUM(H43:H54) -> 260306.2599 | I56: =IF(H56<>0,J56/H56,0) -> 0.7879 | J56: =SUM(J43:J54) -> 205095.3022 | L56: =SUM(L43:L54) -> 260306.2599 | M56: =IF(L56<>0,N56/L56,0) -> 1.8018 | N56: =SUM(N43:N54) -> 469019.8191 | P56: =SUM(P43:P54) -> 674115.1213
B58: ='6. Historical Wholesale'!B58 -> Add Extra Host Here (I) | D58: Network | H58: Line Connection | L58: Transformation Connection | P58: Total Line
B60: Month | D60: Units Billed | E60: Rate | F60: Amount | H60: Units Billed | I60: Rate | J60: Amount | L60: Units Billed | M60: Rate | N60: Amount | P60: Amount
B62: January | D62: ='6. Historical Wholesale'!D62 -> 0 | E62: ='5. UTRs and Sub-Transmission'!G50 -> 0 | F62: =D62*E62 -> 0 | H62: ='6. Historical Wholesale'!H62 -> 0 | I62: ='5. UTRs and Sub-Transmission'!G52 -> 0 | J62: =H62*I62 -> 0 | L62: ='6. Historical Wholesale'!L62 -> 0 | M62: ='5. UTRs and Sub-Transmission'!G54 -> 0 | N62: =L62*M62 -> 0 | P62: =J62+N62 -> 0
B63: February | D63: ='6. Historical Wholesale'!D63 -> 0 | E63: =E62 -> 0 | F63: =D63*E63 -> 0 | H63: ='6. Historical Wholesale'!H63 -> 0 | I63: =I62 -> 0 | J63: =H63*I63 -> 0 | L63: ='6. Historical Wholesale'!L63 -> 0 | M63: =M62 -> 0 | N63: =L63*M63 -> 0 | P63: 0
B64: March | D64: ='6. Historical Wholesale'!D64 -> 0 | E64: =E63 -> 0 | F64: 0 | H64: ='6. Historical Wholesale'!H64 -> 0 | I64: =I63 -> 0 | J64: 0 | L64: ='6. Historical Wholesale'!L64 -> 0 | M64: =M63 -> 0 | N64: 0 | P64: 0
B65: April | D65: ='6. Historical Wholesale'!D65 -> 0 | E65: 0 | F65: 0 | H65: ='6. Historical Wholesale'!H65 -> 0 | I65: 0 | J65: 0 | L65: ='6. Historical Wholesale'!L65 -> 0 | M65: =M64 -> 0 | N65: 0 | P65: 0
B66: May | D66: ='6. Historical Wholesale'!D66 -> 0 | E66: 0 | F66: 0 | H66: ='6. Historical Wholesale'!H66 -> 0 | I66: 0 | J66: 0 | L66: ='6. Historical Wholesale'!L66 -> 0 | M66: 0 | N66: 0 | P66: 0
B67: June | D67: ='6. Historical Wholesale'!D67 -> 0 | E67: 0 | F67: 0 | H67: ='6. Historical Wholesale'!H67 -> 0 | I67: 0 | J67: 0 | L67: ='6. Historical Wholesale'!L67 -> 0 | M67: 0 | N67: 0 | P67: 0
B68: July | D68: ='6. Historical Wholesale'!D68 -> 0 | E68: 0 | F68: 0 | H68: ='6. Historical Wholesale'!H68 -> 0 | I68: 0 | J68: 0 | L68: ='6. Historical Wholesale'!L68 -> 0 | M68: 0 | N68: 0 | P68: 0
B69: August | D69: ='6. Historical Wholesale'!D69 -> 0 | E69: 0 | F69: 0 | H69: ='6. Historical Wholesale'!H69 -> 0 | I69: 0 | J69: 0 | L69: ='6. Historical Wholesale'!L69 -> 0 | M69: 0 | N69: 0 | P69: 0
B70: September | D70: ='6. Historical Wholesale'!D70 -> 0 | E70: 0 | F70: 0 | H70: ='6. Historical Wholesale'!H70 -> 0 | I70: 0 | J70: 0 | L70: ='6. Historical Wholesale'!L70 -> 0 | M70: 0 | N70: 0 | P70: 0
B71: October | D71: ='6. Historical Wholesale'!D71 -> 0 | E71: 0 | F71: 0 | H71: ='6. Historical Wholesale'!H71 -> 0 | I71: 0 | J71: 0 | L71: ='6. Historical Wholesale'!L71 -> 0 | M71: 0 | N71: 0 | P71: 0
B72: November | D72: ='6. Historical Wholesale'!D72 -> 0 | E72: 0 | F72: 0 | H72: ='6. Historical Wholesale'!H72 -> 0 | I72: 0 | J72: 0 | L72: ='6. Historical Wholesale'!L72 -> 0 | M72: 0 | N72: 0 | P72: 0
B73: December | D73: ='6. Historical Wholesale'!D73 -> 0 | E73: 0 | F73: 0 | H73: ='6. Historical Wholesale'!H73 -> 0 | I73: 0 | J73: 0 | L73: ='6. Historical Wholesale'!L73 -> 0 | M73: 0 | N73: 0 | P73: 0
B75: Total | D75: =SUM(D62:D73) -> 0 | E75: =IF(D75<>0,F75/D75,0) -> 0 | F75: =SUM(F62:F73) -> 0 | H75: =SUM(H62:H73) -> 0 | I75: =IF(H75<>0,J75/H75,0) -> 0 | J75: =SUM(J62:J73) -> 0 | L75: =SUM(L62:L73) -> 0 | M75: =IF(L75<>0,N75/L75,0) -> 0 | N75: =SUM(N62:N73) -> 0 | P75: =SUM(P62:P73) -> 0
B77: ='6. Historical Wholesale'!B77 -> Add Extra Host Here (II) | D77: Network | H77: Line Connection | L77: Transformation Connection | P77: Total Line
B79: Month | D79: Units Billed | E79: Rate | F79: Amount | H79: Units Billed | I79: Rate | J79: Amount | L79: Units Billed | M79: Rate | N79: Amount | P79: Amount
B81: January | D81: ='6. Historical Wholesale'!D81 -> 0 | E81: ='5. UTRs and Sub-Transmission'!G65 -> 0 | F81: =D81*E81 -> 0 | H81: ='6. Historical Wholesale'!H81 -> 0 | I81: ='5. UTRs and Sub-Transmission'!G67 -> 0 | J81: =H81*I81 -> 0 | L81: ='6. Historical Wholesale'!L81 -> 0 | M81: ='5. UTRs and Sub-Transmission'!G69 -> 0 | N81: =L81*M81 -> 0 | P81: =J81+N81 -> 0
B82: February | D82: ='6. Historical Wholesale'!D82 -> 0 | E82: =E81 -> 0 | F82: =D82*E82 -> 0 | H82: ='6. Historical Wholesale'!H82 -> 0 | I82: =I81 -> 0 | J82: =H82*I82 -> 0 | L82: ='6. Historical Wholesale'!L82 -> 0 | M82: =M81 -> 0 | N82: =L82*M82 -> 0 | P82: 0
B83: March | D83: ='6. Historical Wholesale'!D83 -> 0 | E83: =E82 -> 0 | F83: 0 | H83: ='6. Historical Wholesale'!H83 -> 0 | I83: =I82 -> 0 | J83: 0 | L83: ='6. Historical Wholesale'!L83 -> 0 | M83: =M82 -> 0 | N83: 0 | P83: 0
B84: April | D84: ='6. Historical Wholesale'!D84 -> 0 | E84: 0 | F84: 0 | H84: ='6. Historical Wholesale'!H84 -> 0 | I84: 0 | J84: 0 | L84: ='6. Historical Wholesale'!L84 -> 0 | M84: =M83 -> 0 | N84: 0 | P84: 0
B85: May | D85: ='6. Historical Wholesale'!D85 -> 0 | E85: 0 | F85: 0 | H85: ='6. Historical Wholesale'!H85 -> 0 | I85: 0 | J85: 0 | L85: ='6. Historical Wholesale'!L85 -> 0 | M85: 0 | N85: 0 | P85: 0
B86: June | D86: ='6. Historical Wholesale'!D86 -> 0 | E86: 0 | F86: 0 | H86: ='6. Historical Wholesale'!H86 -> 0 | I86: 0 | J86: 0 | L86: ='6. Historical Wholesale'!L86 -> 0 | M86: 0 | N86: 0 | P86: 0
B87: July | D87: ='6. Historical Wholesale'!D87 -> 0 | E87: 0 | F87: 0 | H87: ='6. Historical Wholesale'!H87 -> 0 | I87: 0 | J87: 0 | L87: ='6. Historical Wholesale'!L87 -> 0 | M87: 0 | N87: 0 | P87: 0
B88: August | D88: ='6. Historical Wholesale'!D88 -> 0 | E88: 0 | F88: 0 | H88: ='6. Historical Wholesale'!H88 -> 0 | I88: 0 | J88: 0 | L88: ='6. Historical Wholesale'!L88 -> 0 | M88: 0 | N88: 0 | P88: 0
B89: September | D89: ='6. Historical Wholesale'!D89 -> 0 | E89: 0 | F89: 0 | H89: ='6. Historical Wholesale'!H89 -> 0 | I89: 0 | J89: 0 | L89: ='6. Historical Wholesale'!L89 -> 0 | M89: 0 | N89: 0 | P89: 0
B90: October | D90: ='6. Historical Wholesale'!D90 -> 0 | E90: 0 | F90: 0 | H90: ='6. Historical Wholesale'!H90 -> 0 | I90: 0 | J90: 0 | L90: ='6. Historical Wholesale'!L90 -> 0 | M90: 0 | N90: 0 | P90: 0
B91: November | D91: ='6. Historical Wholesale'!D91 -> 0 | E91: 0 | F91: 0 | H91: ='6. Historical Wholesale'!H91 -> 0 | I91: 0 | J91: 0 | L91: ='6. Historical Wholesale'!L91 -> 0 | M91: 0 | N91: 0 | P91: 0
B92: December | D92: ='6. Historical Wholesale'!D92 -> 0 | E92: 0 | F92: 0 | H92: ='6. Historical Wholesale'!H92 -> 0 | I92: 0 | J92: 0 | L92: ='6. Historical Wholesale'!L92 -> 0 | M92: 0 | N92: 0 | P92: 0
B94: Total | D94: =SUM(D81:D92) -> 0 | E94: =IF(D94<>0,F94/D94,0) -> 0 | F94: =SUM(F81:F92) -> 0 | H94: =SUM(H81:H92) -> 0 | I94: =IF(H94<>0,J94/H94,0) -> 0 | J94: =SUM(J81:J92) -> 0 | L94: =SUM(L81:L92) -> 0 | M94: =IF(L94<>0,N94/L94,0) -> 0 | N94: =SUM(N81:N92) -> 0 | P94: =SUM(P81:P92) -> 0
B96: Total | D96: Network | H96: Line Connection | L96: Transformation Connection | P96: Total Line
B98: Month | D98: Units Billed | E98: Rate | F98: Amount | H98: Units Billed | I98: Rate | J98: Amount | L98: Units Billed | M98: Rate | N98: Amount | P98: Amount
B100: January | D100: =D24+D43+D62+D81 -> 24949.49864 | E100: =IF(D100<>0,F100/D100,0) -> 3.4121 | F100: =F24+F43+F62+F81 -> 85130.1843 | H100: =H24+H43+H62+H81 -> 25102.7079 | I100: =IF(H100<>0,J100/H100,0) -> 0.7879 | J100: =J24+J43+J62+J81 -> 19778.42355 | L100: =L24+L43+L62+L81 -> 25102.7079 | M100: =IF(L100<>0,N100/L100,0) -> 1.8018 | N100: =N24+N43+N62+N81 -> 45230.05909 | P100: =J100+N100 -> 65008.48264
B101: February | D101: =D25+D44+D63+D82 -> 21762.9332 | E101: 3.4121 | F101: =F25+F44+F63+F82 -> 74257.30437 | H101: =H25+H44+H63+H82 -> 21765.83612 | I101: 0.7879 | J101: =J25+J44+J63+J82 -> 17149.30228 | L101: =L25+L44+L63+L82 -> 21765.83612 | M101: 1.8018 | N101: =N25+N44+N63+N82 -> 39217.68353 | P101: 56366.98581
B102: March | D102: 20658.37136 | E102: 3.4121 | F102: 70488.42893 | H102: 25598.05799 | I102: 0.7879 | J102: 20168.70989 | L102: 25598.05799 | M102: 1.8018 | N102: 46122.58089 | P102: 66291.29078
B103: April | D103: 21516.41299 | E103: 3.4121 | F103: 73416.15277 | H103: 21516.41078 | I103: 0.7879 | J103: 16952.78005 | L103: 21516.41078 | M103: 1.8018 | N103: 38768.26894 | P103: 55721.04899
B104: May | D104: 17634.12239 | E104: 3.4121 | F104: 60169.38902 | H104: 17652.53955 | I104: 0.7879 | J104: 13908.43591 | L104: 17652.53955 | M104: 1.8018 | N104: 31806.34575 | P104: 45714.78166
B105: June | D105: 16643.67001 | E105: 3.4121 | F105: 56789.86644 | H105: 16659.57672 | I105: 0.7879 | J105: 13126.0805 | L105: 16659.57672 | M105: 1.8018 | N105: 30017.22533 | P105: 43143.30582
B106: July | D106: 22064.7302 | E106: 3.4121 | F106: 75287.0659 | H106: 25796.01049 | I106: 0.7879 | J106: 20324.67666 | L106: 25796.01049 | M106: 1.8018 | N106: 46479.2517 | P106: 66803.92836
B107: August | D107: 24229.16714 | E107: 3.4121 | F107: 82672.3412 | H107: 24229.16764 | I107: 0.7879 | J107: 19090.16118 | L107: 24229.16764 | M107: 1.8018 | N107: 43656.11425 | P107: 62746.27543
B108: September | D108: 19834.41916 | E108: 3.4121 | F108: 67677.02163 | H108: 19885.12567 | I108: 0.7879 | J108: 15667.49052 | L108: 19885.12567 | M108: 1.8018 | N108: 35829.01944 | P108: 51496.50995
B109: October | D109: 22034.01068 | E109: 3.4121 | F109: 75182.24785 | H109: 22047.35049 | I109: 0.7879 | J109: 17371.10745 | L109: 22047.35049 | M109: 1.8018 | N109: 39724.91612 | P109: 57096.02357
B110: November | D110: 18676.25344 | E110: 3.4121 | F110: 63725.24435 | H110: 18718.35958 | I110: 0.7879 | J110: 14748.19551 | L110: 18718.35958 | M110: 1.8018 | N110: 33726.74029 | P110: 48474.93581
B111: December | D111: 21295.01548 | E111: 3.4121 | F111: 72660.72232 | H111: 21335.11699 | I111: 0.7879 | J111: 16809.93868 | L111: 21335.11699 | M111: 1.8018 | N111: 38441.61379 | P111: 55251.55247
B113: Total | D113: =SUM(D100:D111) -> 251298.6047 | E113: =IF(D113<>0,F113/D113,0) -> 3.4121 | F113: =SUM(F100:F111) -> 857455.9691 | H113: =SUM(H100:H111) -> 260306.2599 | I113: =IF(H113<>0,J113/H113,0) -> 0.7879 | J113: =SUM(J100:J111) -> 205095.3022 | L113: =SUM(L100:L111) -> 260306.2599 | M113: =IF(L113<>0,N113/L113,0) -> 1.8018 | N113: =SUM(N100:N111) -> 469019.8191 | P113: =SUM(P100:P111) -> 674115.1213
N115: Low Voltage Switchgear Credit (if applicable) | P115: ='5. UTRs and Sub-Transmission'!G95 -> 0
N117: Total including deduction for Low Voltage Switchgear Credit | P117: =P113+P115 -> 674115.1213

Sheet 8. Forecast Wholesale
B13: The purpose of this sheet is to calculate the expected billing when forecasted 2016 Uniform Transmission Rates are applied against historical 2014 transmission units.
B20: IESO | D20: Network | H20: Line Connection | L20: Transformation Connection | P20: Total Line
B22: Month | D22: Units Billed | E22: Rate | F22: Amount | H22: Units Billed | I22: Rate | J22: Amount | L22: Units Billed | M22: Rate | N22: Amount | P22: Amount
B24: January | D24: ='6. Historical Wholesale'!D24 -> 0 | E24: ='5. UTRs and Sub-Transmission'!I22 -> 3.66 | F24: =D24*E24 -> 0 | H24: ='6. Historical Wholesale'!H24 -> 0 | I24: ='5. UTRs and Sub-Transmission'!I24 -> 0.87 | J24: =H24*I24 -> 0 | L24: ='6. Historical Wholesale'!L24 -> 0 | M24: ='5. UTRs and Sub-Transmission'!I26 -> 2.02 | N24: =L24*M24 -> 0 | P24: =J24+N24 -> 0
B25: February | D25: ='6. Historical Wholesale'!D25 -> 0 | E25: =E24 -> 3.66 | F25: 0 | H25: ='6. Historical Wholesale'!H25 -> 0 | I25: =I24 -> 0.87 | J25: 0 | L25: ='6. Historical Wholesale'!L25 -> 0 | M25: =M24 -> 2.02 | N25: 0 | P25: 0
B26: March | D26: ='6. Historical Wholesale'!D26 -> 0 | E26: 3.66 | F26: 0 | H26: ='6. Historical Wholesale'!H26 -> 0 | I26: 0.87 | J26: 0 | L26: ='6. Historical Wholesale'!L26 -> 0 | M26: 2.02 | N26: 0 | P26: 0
B27: April | D27: ='6. Historical Wholesale'!D27 -> 0 | E27: 3.66 | F27: 0 | H27: ='6. Historical Wholesale'!H27 -> 0 | I27: 0.87 | J27: 0 | L27: ='6. Historical Wholesale'!L27 -> 0 | M27: 2.02 | N27: 0 | P27: 0
B28: May | D28: ='6. Historical Wholesale'!D28 -> 0 | E28: 3.66 | F28: 0 | H28: ='6. Historical Wholesale'!H28 -> 0 | I28: 0.87 | J28: 0 | L28: ='6. Historical Wholesale'!L28 -> 0 | M28: 2.02 | N28: 0 | P28: 0
B29: June | D29: ='6. Historical Wholesale'!D29 -> 0 | E29: 3.66 | F29: 0 | H29: ='6. Historical Wholesale'!H29 -> 0 | I29: 0.87 | J29: 0 | L29: ='6. Historical Wholesale'!L29 -> 0 | M29: 2.02 | N29: 0 | P29: 0
B30: July | D30: ='6. Historical Wholesale'!D30 -> 0 | E30: 3.66 | F30: 0 | H30: ='6. Historical Wholesale'!H30 -> 0 | I30: 0.87 | J30: 0 | L30: ='6. Historical Wholesale'!L30 -> 0 | M30: 2.02 | N30: 0 | P30: 0
B31: August | D31: ='6. Historical Wholesale'!D31 -> 0 | E31: 3.66 | F31: 0 | H31: ='6. Historical Wholesale'!H31 -> 0 | I31: 0.87 | J31: 0 | L31: ='6. Historical Wholesale'!L31 -> 0 | M31: 2.02 | N31: 0 | P31: 0
B32: September | D32: ='6. Historical Wholesale'!D32 -> 0 | E32: 3.66 | F32: 0 | H32: ='6. Historical Wholesale'!H32 -> 0 | I32: 0.87 | J32: 0 | L32: ='6. Historical Wholesale'!L32 -> 0 | M32: 2.02 | N32: 0 | P32: 0
B33: October | D33: ='6. Historical Wholesale'!D33 -> 0 | E33: 3.66 | F33: 0 | H33: ='6. Historical Wholesale'!H33 -> 0 | I33: 0.87 | J33: 0 | L33: ='6. Historical Wholesale'!L33 -> 0 | M33: 2.02 | N33: 0 | P33: 0
B34: November | D34: ='6. Historical Wholesale'!D34 -> 0 | E34: 3.66 | F34: 0 | H34: ='6. Historical Wholesale'!H34 -> 0 | I34: 0.87 | J34: 0 | L34: ='6. Historical Wholesale'!L34 -> 0 | M34: 2.02 | N34: 0 | P34: 0
B35: December | D35: ='6. Historical Wholesale'!D35 -> 0 | E35: 3.66 | F35: 0 | H35: ='6. Historical Wholesale'!H35 -> 0 | I35: 0.87 | J35: 0 | L35: ='6. Historical Wholesale'!L35 -> 0 | M35: 2.02 | N35: 0 | P35: 0
B37: Total | D37: =SUM(D24:D35) -> 0 | E37: =IF(D37<>0,F37/D37,0) -> 0 | F37: =SUM(F24:F35) -> 0 | H37: =SUM(H24:H35) -> 0 | I37: =IF(H37<>0,J37/H37,0) -> 0 | J37: =SUM(J24:J35) -> 0 | L37: =SUM(L24:L35) -> 0 | M37: =IF(L37<>0,N37/L37,0) -> 0 | N37: =SUM(N24:N35) -> 0 | P37: =SUM(P24:P35) -> 0
B39: Hydro One | D39: Network | H39: Line Connection | L39: Transformation Connection | P39: Total Line
B41: Month | D41: Units Billed | E41: Rate | F41: Amount | H41: Units Billed | I41: Rate | J41: Amount | L41: Units Billed | M41: Rate | N41: Amount | P41: Amount
B43: January | D43: ='6. Historical Wholesale'!D43 -> 24949.49864 | E43: ='5. UTRs and Sub-Transmission'!I35+'5. UTRs and Sub-Transmission'!I79 -> 3.4121 | F43: =D43*E43 -> 85130.1843 | H43: ='6. Historical Wholesale'!H43 -> 25102.7079 | I43: ='5. UTRs and Sub-Transmission'!I37+'5. UTRs and Sub-Transmission'!I81 -> 0.7879 | J43: =H43*I43 -> 19778.42355 | L43: ='6. Historical Wholesale'!L43 -> 25102.7079 | M43: ='5. UTRs and Sub-Transmission'!I39 -> 1.8018 | N43: =L43*M43 -> 45230.05909 | P43: =J43+N43 -> 65008.48264
B44: February | D44: ='6. Historical Wholesale'!D44 -> 21762.9332 | E44: =E43 -> 3.4121 | F44: 74257.30437 | H44: ='6. Historical Wholesale'!H44 -> 21765.83612 | I44: =I43 -> 0.7879 | J44: 17149.30228 | L44: ='6. Historical Wholesale'!L44 -> 21765.83612 | M44: =M43 -> 1.8018 | N44: 39217.68353 | P44: 56366.98581
B45: March | D45: ='6. Historical Wholesale'!D45 -> 20658.37136 | E45: 3.4121 | F45: 70488.42893 | H45: ='6. Historical Wholesale'!H45 -> 25598.05799 | I45: 0.7879 | J45: 20168.70989 | L45: ='6. Historical Wholesale'!L45 -> 25598.05799 | M45: 1.8018 | N45: 46122.58089 | P45: 66291.29078
B46: April | D46: ='6. Historical Wholesale'!D46 -> 21516.41299 | E46: 3.4121 | F46: 73416.15277 | H46: ='6. Historical Wholesale'!H46 -> 21516.41078 | I46: 0.7879 | J46: 16952.78005 | L46: ='6. Historical Wholesale'!L46 -> 21516.41078 | M46: 1.8018 | N46: 38768.26894 | P46: 55721.04899
B47: May | D47: ='6. Historical Wholesale'!D47 -> 17634.12239 | E47: 3.4121 | F47: 60169.38902 | H47: ='6. Historical Wholesale'!H47 -> 17652.53955 | I47: 0.7879 | J47: 13908.43591 | L47: ='6. Historical Wholesale'!L47 -> 17652.53955 | M47: 1.8018 | N47: 31806.34575 | P47: 45714.78166
B48: June | D48: ='6. Historical Wholesale'!D48 -> 16643.67001 | E48: 3.4121 | F48: 56789.86644 | H48: ='6. Historical Wholesale'!H48 -> 16659.57672 | I48: 0.7879 | J48: 13126.0805 | L48: ='6. Historical Wholesale'!L48 -> 16659.57672 | M48: 1.8018 | N48: 30017.22533 | P48: 43143.30582
B49: July | D49: ='6. Historical Wholesale'!D49 -> 22064.7302 | E49: 3.4121 | F49: 75287.0659 | H49: ='6. Historical Wholesale'!H49 -> 25796.01049 | I49: 0.7879 | J49: 20324.67666 | L49: ='6. Historical Wholesale'!L49 -> 25796.01049 | M49: 1.8018 | N49: 46479.2517 | P49: 66803.92836
B50: August | D50: ='6. Historical Wholesale'!D50 -> 24229.16714 | E50: 3.4121 | F50: 82672.3412 | H50: ='6. Historical Wholesale'!H50 -> 24229.16764 | I50: 0.7879 | J50: 19090.16118 | L50: ='6. Historical Wholesale'!L50 -> 24229.16764 | M50: 1.8018 | N50: 43656.11425 | P50: 62746.27543
B51: September | D51: ='6. Historical Wholesale'!D51 -> 19834.41916 | E51: 3.4121 | F51: 67677.02163 | H51: ='6. Historical Wholesale'!H51 -> 19885.12567 | I51: 0.7879 | J51: 15667.49052 | L51: ='6. Historical Wholesale'!L51 -> 19885.12567 | M51: 1.8018 | N51: 35829.01944 | P51: 51496.50995
B52: October | D52: ='6. Historical Wholesale'!D52 -> 22034.01068 | E52: 3.4121 | F52: 75182.24785 | H52: ='6. Historical Wholesale'!H52 -> 22047.35049 | I52: 0.7879 | J52: 17371.10745 | L52: ='6. Historical Wholesale'!L52 -> 22047.35049 | M52: 1.8018 | N52: 39724.91612 | P52: 57096.02357
B53: November | D53: ='6. Historical Wholesale'!D53 -> 18676.25344 | E53: 3.4121 | F53: 63725.24435 | H53: ='6. Historical Wholesale'!H53 -> 18718.35958 | I53: 0.7879 | J53: 14748.19551 | L53: ='6. Historical Wholesale'!L53 -> 18718.35958 | M53: 1.8018 | N53: 33726.74029 | P53: 48474.93581
B54: December | D54: ='6. Historical Wholesale'!D54 -> 21295.01548 | E54: 3.4121 | F54: 72660.72232 | H54: ='6. Historical Wholesale'!H54 -> 21335.11699 | I54: 0.7879 | J54: 16809.93868 | L54: ='6. Historical Wholesale'!L54 -> 21335.11699 | M54: 1.8018 | N54: 38441.61379 | P54: 55251.55247
B56: Total | D56: =SUM(D43:D54) -> 251298.6047 | E56: =IF(D56<>0,F56/D56,0) -> 3.4121 | F56: =SUM(F43:F54) -> 857455.9691 | H56: =SUM(H43:H54) -> 260306.2599 | I56: =IF(H56<>0,J56/H56,0) -> 0.7879 | J56: =SUM(J43:J54) -> 205095.3022 | L56: =SUM(L43:L54) -> 260306.2599 | M56: =IF(L56<>0,N56/L56,0) -> 1.8018 | N56: =SUM(N43:N54) -> 469019.8191 | P56: =SUM(P43:P54) -> 674115.1213
B58: ='6. Historical Wholesale'!B58 -> Add Extra Host Here (I) | D58: Network | H58: Line Connection | L58: Transformation Connection | P58: Total Line
B60: Month | D60: Units Billed | E60: Rate | F60: Amount | H60: Units Billed | I60: Rate | J60: Amount | L60: Units Billed | M60: Rate | N60: Amount | P60: Amount
B62: January | D62: ='6. Historical Wholesale'!D62 -> 0 | E62: ='5. UTRs and Sub-Transmission'!I50 -> 0 | F62: =D62*E62 -> 0 | H62: ='6. Historical Wholesale'!H62 -> 0 | I62: ='5. UTRs and Sub-Transmission'!I52 -> 0 | J62: =H62*I62 -> 0 | L62: ='6. Historical Wholesale'!L62 -> 0 | M62: ='5. UTRs and Sub-Transmission'!I54 -> 0 | N62: =L62*M62 -> 0 | P62: =J62+N62 -> 0
B63: February | D63: ='6. Historical Wholesale'!D63 -> 0 | E63: =E62 -> 0 | F63: 0 | H63: ='6. Historical Wholesale'!H63 -> 0 | I63: =I62 -> 0 | J63: 0 | L63: ='6. Historical Wholesale'!L63 -> 0 | M63: =M62 -> 0 | N63: 0 | P63: 0
B64: March | D64: ='6. Historical Wholesale'!D64 -> 0 | E64: 0 | F64: 0 | H64: ='6. Historical Wholesale'!H64 -> 0 | I64: 0 | J64: 0 | L64: ='6. Historical Wholesale'!L64 -> 0 | M64: 0 | N64: 0 | P64: 0
B65: April | D65: ='6. Historical Wholesale'!D65 -> 0 | E65: 0 | F65: 0 | H65: ='6. Historical Wholesale'!H65 -> 0 | I65: 0 | J65: 0 | L65: ='6. Historical Wholesale'!L65 -> 0 | M65: 0 | N65: 0 | P65: 0
B66: May | D66: ='6. Historical Wholesale'!D66 -> 0 | E66: 0 | F66: 0 | H66: ='6. Historical Wholesale'!H66 -> 0 | I66: 0 | J66: 0 | L66: ='6. Historical Wholesale'!L66 -> 0 | M66: 0 | N66: 0 | P66: 0
B67: June | D67: ='6. Historical Wholesale'!D67 -> 0 | E67: 0 | F67: 0 | H67: ='6. Historical Wholesale'!H67 -> 0 | I67: 0 | J67: 0 | L67: ='6. Historical Wholesale'!L67 -> 0 | M67: 0 | N67: 0 | P67: 0
B68: July | D68: ='6. Historical Wholesale'!D68 -> 0 | E68: 0 | F68: 0 | H68: ='6. Historical Wholesale'!H68 -> 0 | I68: 0 | J68: 0 | L68: ='6. Historical Wholesale'!L68 -> 0 | M68: 0 | N68: 0 | P68: 0
B69: August | D69: ='6. Historical Wholesale'!D69 -> 0 | E69: 0 | F69: 0 | H69: ='6. Historical Wholesale'!H69 -> 0 | I69: 0 | J69: 0 | L69: ='6. Historical Wholesale'!L69 -> 0 | M69: 0 | N69: 0 | P69: 0
B70: September | D70: ='6. Historical Wholesale'!D70 -> 0 | E70: 0 | F70: 0 | H70: ='6. Historical Wholesale'!H70 -> 0 | I70: 0 | J70: 0 | L70: ='6. Historical Wholesale'!L70 -> 0 | M70: 0 | N70: 0 | P70: 0
B71: October | D71: ='6. Historical Wholesale'!D71 -> 0 | E71: 0 | F71: 0 | H71: ='6. Historical Wholesale'!H71 -> 0 | I71: 0 | J71: 0 | L71: ='6. Historical Wholesale'!L71 -> 0 | M71: 0 | N71: 0 | P71: 0
B72: November | D72: ='6. Historical Wholesale'!D72 -> 0 | E72: 0 | F72: 0 | H72: ='6. Historical Wholesale'!H72 -> 0 | I72: 0 | J72: 0 | L72: ='6. Historical Wholesale'!L72 -> 0 | M72: 0 | N72: 0 | P72: 0
B73: December | D73: ='6. Historical Wholesale'!D73 -> 0 | E73: 0 | F73: 0 | H73: ='6. Historical Wholesale'!H73 -> 0 | I73: 0 | J73: 0 | L73: ='6. Historical Wholesale'!L73 -> 0 | M73: 0 | N73: 0 | P73: 0
B75: Total | D75: =SUM(D62:D73) -> 0 | E75: =IF(D75<>0,F75/D75,0) -> 0 | F75: =SUM(F62:F73) -> 0 | H75: =SUM(H62:H73) -> 0 | I75: =IF(H75<>0,J75/H75,0) -> 0 | J75: =SUM(J62:J73) -> 0 | L75: =SUM(L62:L73) -> 0 | M75: =IF(L75<>0,N75/L75,0) -> 0 | N75: =SUM(N62:N73) -> 0 | P75: =SUM(P62:P73) -> 0
B77: ='6. Historical Wholesale'!B77 -> Add Extra Host Here (II) | D77: Network | H77: Line Connection | L77: Transformation Connection | P77: Total Line
B79: Month | D79: Units Billed | E79: Rate | F79: Amount | H79: Units Billed | I79: Rate | J79: Amount | L79: Units Billed | M79: Rate | N79: Amount | P79: Amount
B81: January | D81: ='6. Historical Wholesale'!D81 -> 0 | E81: ='5. UTRs and Sub-Transmission'!I65 -> 0 | F81: =D81*E81 -> 0 | H81: ='6. Historical Wholesale'!H81 -> 0 | I81: ='5. UTRs and Sub-Transmission'!I67 -> 0 | J81: =H81*I81 -> 0 | L81: ='6. Historical Wholesale'!L81 -> 0 | M81: ='5. UTRs and Sub-Transmission'!I69 -> 0 | N81: =L81*M81 -> 0 | P81: =J81+N81 -> 0
B82: February | D82: ='6. Historical Wholesale'!D82 -> 0 | E82: =E81 -> 0 | F82: 0 | H82: ='6. Historical Wholesale'!H82 -> 0 | I82: =I81 -> 0 | J82: 0 | L82: ='6. Historical Wholesale'!L82 -> 0 | M82: =M81 -> 0 | N82: 0 | P82: 0
B83: March | D83: ='6. Historical Wholesale'!D83 -> 0 | E83: 0 | F83: 0 | H83: ='6. Historical Wholesale'!H83 -> 0 | I83: 0 | J83: 0 | L83: ='6. Historical Wholesale'!L83 -> 0 | M83: 0 | N83: 0 | P83: 0
B84: April | D84: ='6. Historical Wholesale'!D84 -> 0 | E84: 0 | F84: 0 | H84: ='6. Historical Wholesale'!H84 -> 0 | I84: 0 | J84: 0 | L84: ='6. Historical Wholesale'!L84 -> 0 | M84: 0 | N84: 0 | P84: 0
B85: May | D85: ='6. Historical Wholesale'!D85 -> 0 | E85: 0 | F85: 0 | H85: ='6. Historical Wholesale'!H85 -> 0 | I85: 0 | J85: 0 | L85: ='6. Historical Wholesale'!L85 -> 0 | M85: 0 | N85: 0 | P85: 0
B86: June | D86: ='6. Historical Wholesale'!D86 -> 0 | E86: 0 | F86: 0 | H86: ='6. Historical Wholesale'!H86 -> 0 | I86: 0 | J86: 0 | L86: ='6. Historical Wholesale'!L86 -> 0 | M86: 0 | N86: 0 | P86: 0
B87: July | D87: ='6. Historical Wholesale'!D87 -> 0 | E87: 0 | F87: 0 | H87: ='6. Historical Wholesale'!H87 -> 0 | I87: 0 | J87: 0 | L87: ='6. Historical Wholesale'!L87 -> 0 | M87: 0 | N87: 0 | P87: 0
B88: August | D88: ='6. Historical Wholesale'!D88 -> 0 | E88: 0 | F88: 0 | H88: ='6. Historical Wholesale'!H88 -> 0 | I88: 0 | J88: 0 | L88: ='6. Historical Wholesale'!L88 -> 0 | M88: 0 | N88: 0 | P88: 0
B89: September | D89: ='6. Historical Wholesale'!D89 -> 0 | E89: 0 | F89: 0 | H89: ='6. Historical Wholesale'!H89 -> 0 | I89: 0 | J89: 0 | L89: ='6. Historical Wholesale'!L89 -> 0 | M89: 0 | N89: 0 | P89: 0
B90: October | D90: ='6. Historical Wholesale'!D90 -> 0 | E90: 0 | F90: 0 | H90: ='6. Historical Wholesale'!H90 -> 0 | I90: 0 | J90: 0 | L90: ='6. Historical Wholesale'!L90 -> 0 | M90: 0 | N90: 0 | P90: 0
B91: November | D91: ='6. Historical Wholesale'!D91 -> 0 | E91: 0 | F91: 0 | H91: ='6. Historical Wholesale'!H91 -> 0 | I91: 0 | J91: 0 | L91: ='6. Historical Wholesale'!L91 -> 0 | M91: 0 | N91: 0 | P91: 0
B92: December | D92: ='6. Historical Wholesale'!D92 -> 0 | E92: 0 | F92: 0 | H92: ='6. Historical Wholesale'!H92 -> 0 | I92: 0 | J92: 0 | L92: ='6. Historical Wholesale'!L92 -> 0 | M92: 0 | N92: 0 | P92: 0
B94: Total | D94: =SUM(D81:D92) -> 0 | E94: =IF(D94<>0,F94/D94,0) -> 0 | F94: =SUM(F81:F92) -> 0 | H94: =SUM(H81:H92) -> 0 | I94: =IF(H94<>0,J94/H94,0) -> 0 | J94: =SUM(J81:J92) -> 0 | L94: =SUM(L81:L92) -> 0 | M94: =IF(L94<>0,N94/L94,0) -> 0 | N94: =SUM(N81:N92) -> 0 | P94: =SUM(P81:P92) -> 0
B96: Total | D96: Network | H96: Line Connection | L96: Transformation Connection | P96: Total Line
B98: Month | D98: Units Billed | E98: Rate | F98: Amount | H98: Units Billed | I98: Rate | J98: Amount | L98: Units Billed | M98: Rate | N98: Amount | P98: Amount
B100: January | D100: =D24+D43+D62+D81 -> 24949.49864 | E100: =IF(D100<>0,F100/D100,0) -> 3.4121 | F100: =F24+F43+F62+F81 -> 85130.1843 | H100: =H24+H43+H62+H81 -> 25102.7079 | I100: =IF(H100<>0,J100/H100,0) -> 0.7879 | J100: =J24+J43+J62+J81 -> 19778.42355 | L100: =L24+L43+L62+L81 -> 25102.7079 | M100: =IF(L100<>0,N100/L100,0) -> 1.8018 | N100: =N24+N43+N62+N81 -> 45230.05909 | P100: =J100+N100 -> 65008.48264
B101: February | D101: =D25+D44+D63+D82 -> 21762.9332 | E101: 3.4121 | F101: 74257.30437 | H101: 21765.83612 | I101: 0.7879 | J101: 17149.30228 | L101: 21765.83612 | M101: 1.8018 | N101: 39217.68353 | P101: 56366.98581
B102: March | D102: 20658.37136 | E102: 3.4121 | F102: 70488.42893 | H102: 25598.05799 | I102: 0.7879 | J102: 20168.70989 | L102: 25598.05799 | M102: 1.8018 | N102: 46122.58089 | P102: 66291.29078
B103: April | D103: 21516.41299 | E103: 3.4121 | F103: 73416.15277 | H103: 21516.41078 | I103: 0.7879 | J103: 16952.78005 | L103: 21516.41078 | M103: 1.8018 | N103: 38768.26894 | P103: 55721.04899
B104: May | D104: 17634.12239 | E104: 3.4121 | F104: 60169.38902 | H104: 17652.53955 | I104: 0.7879 | J104: 13908.43591 | L104: 17652.53955 | M104: 1.8018 | N104: 31806.34575 | P104: 45714.78166
B105: June | D105: 16643.67001 | E105: 3.4121 | F105: 56789.86644 | H105: 16659.57672 | I105: 0.7879 | J105: 13126.0805 | L105: 16659.57672 | M105: 1.8018 | N105: 30017.22533 | P105: 43143.30582
B106: July | D106: 22064.7302 | E106: 3.4121 | F106: 75287.0659 | H106: 25796.01049 | I106: 0.7879 | J106: 20324.67666 | L106: 25796.01049 | M106: 1.8018 | N106: 46479.2517 | P106: 66803.92836
B107: August | D107: 24229.16714 | E107: 3.4121 | F107: 82672.3412 | H107: 24229.16764 | I107: 0.7879 | J107: 19090.16118 | L107: 24229.16764 | M107: 1.8018 | N107: 43656.11425 | P107: 62746.27543
B108: September | D108: 19834.41916 | E108: 3.4121 | F108: 67677.02163 | H108: 19885.12567 | I108: 0.7879 | J108: 15667.49052 | L108: 19885.12567 | M108: 1.8018 | N108: 35829.01944 | P108: 51496.50995
B109: October | D109: 22034.01068 | E109: 3.4121 | F109: 75182.24785 | H109: 22047.35049 | I109: 0.7879 | J109: 17371.10745 | L109: 22047.35049 | M109: 1.8018 | N109: 39724.91612 | P109: 57096.02357
B110: November | D110: 18676.25344 | E110: 3.4121 | F110: 63725.24435 | H110: 18718.35958 | I110: 0.7879 | J110: 14748.19551 | L110: 18718.35958 | M110: 1.8018 | N110: 33726.74029 | P110: 48474.93581
B111: December | D111: 21295.01548 | E111: 3.4121 | F111: 72660.72232 | H111: 21335.11699 | I111: 0.7879 | J111: 16809.93868 | L111: 21335.11699 | M111: 1.8018 | N111: 38441.61379 | P111: 55251.55247
B113: Total | D113: =SUM(D100:D111) -> 251298.6047 | E113: =IF(D113<>0,F113/D113,0) -> 3.4121 | F113: =SUM(F100:F111) -> 857455.9691 | H113: =SUM(H100:H111) -> 260306.2599 | I113: =IF(H113<>0,J113/H113,0) -> 0.7879 | J113: =SUM(J100:J111) -> 205095.3022 | L113: =SUM(L100:L111) -> 260306.2599 | M113: =IF(L113<>0,N113/L113,0) -> 1.8018 | N113: =SUM(N100:N111) -> 469019.8191 | P113: =SUM(P100:P111) -> 674115.1213
N115: Low Voltage Switchgear Credit (if applicable) | P115: ='5. UTRs and Sub-Transmission'!I95 -> 0
N117: Total including deduction for Low Voltage Switchgear Credit | P117: =P113+P115 -> 674115.1213

Sheet 9. RTSR Rates to Forecast
A13: The purpose of this sheet is to re-align the current RTS Network Rates to recover current wholesale network costs.
A15: Rate Class | B15: Rate Description | C15: Unit | D15: Current RTSR-Network | E15: Loss Adjusted Billed kWh | F15: Billed kW | G15: Billed Amount | H15: Billed Amount % | I15: Current Wholesale Billing | J15: Adjusted RTSR Network
A17: Residential | B17: RTSR - Network | C17: kWh | D17: 0.0082 | E17: 44201094.34 | G17: =ROUND(D17*E17, 2) -> 362448.97 | H17: =G17/939146.2 -> 0.3859345542 | I17: =H17*total_current_wholesale_network -> 330921.8872 | J17: =IF(ISERROR(I17/E17), 0, I17/E17) -> 0.00748673516
A18: General Service Less Than 50 kW | B18: RTSR - Network | C18: kWh | D18: 0.0075 | E18: 22299187.7 | G18: =ROUND(D18*E18, 2) -> 167243.91 | H18: 0.1780808036 | I18: 152696.448 | J18: =IF(ISERROR(I18/E18), 0, I18/E18) -> 0.006847623782
A19: General Service 50 to 4,999 kW | B19: RTSR - Network | C19: kW | D19: 3.1308 | F19: 115031.54 | G19: =ROUND(D19*F19, 2) -> 360140.75 | H19: 0.3834767686 | I19: 328814.4442 | J19: =IF(ISERROR(I19/F19), 0, I19/F19) -> 2.85847207
A20: General Service 50 to 4,999 kW – Interval Metered | B20: RTSR - Network | C20: kW | D20: 3.4979 | F20: 10702.9 | G20: =ROUND(D20*F20, 2) -> 37437.67 | H20: 0.03986351646 | I20: 34181.21014 | J20: =IF(ISERROR(I20/F20), 0, I20/F20) -> 3.193640054
A21: Unmetered Scattered Load | B21: RTSR - Network | C21: kWh | D21: 0.0075 | E21: 586893.6087 | G21: =ROUND(D21*E21, 2) -> 4401.7 | H21: 0.004686916691 | I21: 4018.824693 | J21: =IF(ISERROR(I21/E21), 0, I21/E21) -> 0.006847620478
A22: Sentinel Lighting | B22: RTSR - Network | C22: kW | D22: 2.3731 | F22: 302 | G22: =ROUND(D22*F22, 2) -> 716.68 | H22: 0.000763118671 | I22: 654.3406595 | J22: =IF(ISERROR(I22/F22), 0, I22/F22) -> 2.166690926
A23: Street Lighting | B23: RTSR - Network | C23: kW | D23: 2.3611 | F23: 2861.6 | G23: =ROUND(D23*F23, 2) -> 6756.52 | H23: 0.007194321821 | I23: 6168.814189 | J23: =IF(ISERROR(I23/F23), 0, I23/F23) -> 2.15572204
A25: The purpose of this table is to re-align the current RTS Connection Rates to recover current wholesale connection costs.
A26: Rate Class | B26: Rate Description | C26: Unit | D26: Current RTSR-Connection | E26: Loss Adjusted Billed kWh | F26: Billed kW | G26: Billed Amount | H26: Billed Amount % | I26: Current Wholesale Billing | J26: Adjusted RTSR-Connection
A28: Residential | B28: RTSR - Connection | C28: kWh | D28: 0.0059 | E28: 44201094.34 | G28: =ROUND(D28*E28, 2) -> 260786.46 | H28: =G28/664134.31 -> 0.3926712655 | I28: =H28*Total_Current_Wholesale_Lineplus -> 264705.6378 | J28: =IF(ISERROR(I28/E28), 0, I28/E28) -> 0.005988667062
A29: General Service Less Than 50 kW | B29: RTSR - Connection | C29: kWh | D29: 0.0054 | E29: 22299187.7 | G29: =ROUND(D29*E29, 2) -> 120415.61 | H29: 0.1813121355 | I29: 122225.2522 | J29: =IF(ISERROR(I29/E29), 0, I29/E29) -> 0.00548115267
A30: General Service 50 to 4,999 kW | B30: RTSR - Connection | C30: kW | D30: 2.1618 | F30: 115031.54 | G30: =ROUND(D30*F30, 2) -> 248675.18 | H30: 0.3744350747 | I30: 252412.3458 | J30: =IF(ISERROR(I30/F30), 0, I30/F30) -> 2.194288156
A31: General Service 50 to 4,999 kW – Interval Metered | B31: RTSR - Connection | C31: kW | D31: 2.4096 | F31: 10702.9 | G31: =ROUND(D31*F31, 2) -> 25789.71 | H31: 0.03883206998 | I31: 26177.28556 | J31: =IF(ISERROR(I31/F31), 0, I31/F31) -> 2.445812402
A32: Unmetered Scattered Load | B32: RTSR - Connection | C32: kWh | D32: 0.0054 | E32: 586893.6087 | G32: =ROUND(D32*E32, 2) -> 3169.23 | H32: 0.004771971501 | I32: 3216.858147 | J32: =IF(ISERROR(I32/E32), 0, I32/E32) -> 0.005481160639
A33: Sentinel Lighting | B33: RTSR - Connection | C33: kW | D33: 1.7061 | F33: 302 | G33: =ROUND(D33*F33, 2) -> 515.24 | H33: 0.0007758069298 | I33: 522.9831826 | J33: =IF(ISERROR(I33/F33), 0, I33/F33) -> 1.731732393
A34: Street Lighting | B34: RTSR - Connection | C34: kW | D34: 1.6714 | F34: 2861.6 | G34: =ROUND(D34*F34, 2) -> 4782.88 | H34: 0.007201675818 | I34: 4854.758567 | J34: =IF(ISERROR(I34/F34), 0, I34/F34) -> 1.696518929
A36: The purpose of this table is to update the re-aligned RTS Network Rates to recover future wholesale network costs.
A37: Rate Class | B37: Rate Description | C37: Unit | D37: Adjusted RTSR-Network | E37: Loss Adjusted Billed kWh | F37: Billed kW | G37: Billed Amount | H37: Billed Amount % | I37: Current Wholesale Billing | J37: Proposed RTSR-Network
A39: Residential | B39: RTSR - Network | C39: kWh | D39: 0.00748673516 | E39: 44201094.34 | G39: =IF(ISERROR(D39*E39), 0, ROUND(D39*E39, 2)) -> 330921.89 | H39: =G39/857455.96 -> 0.3859345616 | I39: =H39*forecast_wholesale_network -> 330921.8935 | J39: =IF(ISERROR(I39/E39), 0, I39/E39) -> 0.007486735304
A40: General Service Less Than 50 kW | B40: RTSR - Network | C40: kWh | D40: 0.006847623782 | E40: 22299187.7 | G40: =IF(ISERROR(D40*E40), 0, ROUND(D40*E40, 2)) -> 152696.45 | H40: 0.1780808078 | I40: 152696.4516 | J40: =IF(ISERROR(I40/E40), 0, I40/E40) -> 0.006847623943
A41: General Service 50 to 4,999 kW | B41: RTSR - Network | C41: kW | D41: 2.85847207 | F41: 115031.54 | G41: =ROUND(D41*F41, 2) -> 328814.44 | H41: 0.3834767677 | I41: 328814.4435 | J41: =IF(ISERROR(I41/F41), 0, I41/F41) -> 2.858472063
A42: General Service 50 to 4,999 kW – Interval Metered | B42: RTSR - Network | C42: kW | D42: 3.193640054 | F42: 10702.9 | G42: =ROUND(D42*F42, 2) -> 34181.21 | H42: 0.03986351672 | I42: 34181.21036 | J42: =IF(ISERROR(I42/F42), 0, I42/F42) -> 3.193640075
A43: Unmetered Scattered Load | B43: RTSR - Network | C43: kWh | D43: 0.006847620478 | E43: 586893.6087 | G43: =IF(ISERROR(D43*E43), 0, ROUND(D43*E43, 2)) -> 4018.82 | H43: 0.004686911267 | I43: 4018.820043 | J43: =IF(ISERROR(I43/E43), 0, I43/E43) -> 0.006847612554
A44: Sentinel Lighting | B44: RTSR - Network | C44: kW | D44: 2.166690926 | F44: 302 | G44: =ROUND(D44*F44, 2) -> 654.34 | H44: 0.0007631179099 | I44: 654.3400069 | J44: =IF(ISERROR(I44/F44), 0, I44/F44) -> 2.166688765
A45: Street Lighting | B45: RTSR - Network | C45: kW | D45: 2.15572204 | F45: 2861.6 | G45: =ROUND(D45*F45, 2) -> 6168.81 | H45: 0.007194317012 | I45: 6168.810065 | J45: =IF(ISERROR(I45/F45), 0, I45/F45) -> 2.155720599
A47: The purpose of this table is to update the re-aligned RTS Connection Rates to recover future wholesale connection costs.
A48: Rate Class | B48: Rate Description | C48: Unit | D48: Adjusted RTSR-Connection | E48: Loss Adjusted Billed kWh | F48: Billed kW | G48: Billed Amount | H48: Billed Amount % | I48: Current Wholesale Billing | J48: Proposed RTSR-Connection
A50: Residential | B50: RTSR - Connection | C50: kWh | D50: 0.005988667062 | E50: 44201094.34 | G50: =ROUND(D50*E50, 2) -> 264705.64 | H50: =G50/674115.13 -> 0.3926712637 | I50: =H50*forecast_wholesale_lineplus -> 264705.6366 | J50: =IF(ISERROR(I50/E50), 0, I50/E50) -> 0.005988667034
A51: General Service Less Than 50 kW | B51: RTSR - Connection | C51: kWh | D51: 0.00548115267 | E51: 22299187.7 | G51: =ROUND(D51*E51, 2) -> 122225.25 | H51: 0.1813121299 | I51: 122225.2484 | J51: =IF(ISERROR(I51/E51), 0, I51/E51) -> 0.0054811525
A52: General Service 50 to 4,999 kW | B52: RTSR - Connection | C52: kW | D52: 2.194288156 | F52: 115031.54 | G52: =ROUND(D52*F52, 2) -> 252412.35 | H52: 0.3744350761 | I52: 252412.3467 | J52: =IF(ISERROR(I52/F52), 0, I52/F52) -> 2.194288164
A53: General Service 50 to 4,999 kW – Interval Metered | B53: RTSR - Connection | C53: kW | D53: 2.445812402 | F53: 10702.9 | G53: =ROUND(D53*F53, 2) -> 26177.29 | H53: 0.03883207606 | I53: 26177.28966 | J53: =IF(ISERROR(I53/F53), 0, I53/F53) -> 2.445812785
A54: Unmetered Scattered Load | B54: RTSR - Connection | C54: kWh | D54: 0.005481160639 | E54: 586893.6087 | G54: =ROUND(D54*E54, 2) -> 3216.86 | H54: 0.004771974188 | I54: 3216.859958 | J54: =IF(ISERROR(I54/E54), 0, I54/E54) -> 0.005481163725
A55: Sentinel Lighting | B55: RTSR - Connection | C55: kW | D55: 1.731732393 | F55: 302 | G55: =ROUND(D55*F55, 2) -> 522.98 | H55: 0.0007758021987 | I55: 522.9799932 | J55: =IF(ISERROR(I55/F55), 0, I55/F55) -> 1.731721832
A56: Street Lighting | B56: RTSR - Connection | C56: kW | D56: 1.696518929 | F56: 2861.6 | G56: =ROUND(D56*F56, 2) -> 4854.76 | H56: 0.00720167785 | I56: 4854.759937 | J56: =IF(ISERROR(I56/F56), 0, I56/F56) -> 1.696519408

Sheet hidden1 (hidden)
A1: =IF('3. Rate Classes'!L17=1, '3. Rate Classes'!C17, "") -> Residential | B1: 1
A2: =IF('3. Rate Classes'!L18=1, '3. Rate Classes'!C18, "") -> General Service Less Than 50 kW | B2: 2
A3: =IF('3. Rate Classes'!L19=1, '3. Rate Classes'!C19, "") -> General Service 50 to 4,999 kW | B3: 3
A4: =IF('3. Rate Classes'!L20=1, '3. Rate Classes'!C20, "") -> General Service 50 to 4,999 kW – Interval Metered | B4: 4
A5: =IF('3. Rate Classes'!L21=1, '3. Rate Classes'!C21, "") -> Unmetered Scattered Load | B5: 5
A6: =IF('3. Rate Classes'!L22=1, '3. Rate Classes'!C22, "") -> Sentinel Lighting | B6: 6
A7: =IF('3. Rate Classes'!L23=1, '3. Rate Classes'!C23, "") -> Street Lighting | B7: 7
A8: =IF('3. Rate Classes'!L24=1, '3. Rate Classes'!C24, "") ->  | B8: 8
A9: =IF('3. Rate Classes'!L25=1, '3. Rate Classes'!C25, "") ->  | B9: 9
A10: =IF('3. Rate Classes'!L26=1, '3. Rate Classes'!C26, "") ->  | B10: 10
A11: =IF('3. Rate Classes'!L27=1, '3. Rate Classes'!C27, "") ->  | B11: 11
A12: =IF('3. Rate Classes'!L28=1, '3. Rate Classes'!C28, "") ->  | B12: 12
A13: =IF('3. Rate Classes'!L29=1, '3. Rate Classes'!C29, "") ->  | B13: 13
A14: =IF('3. Rate Classes'!L30=1, '3. Rate Classes'!C30, "") ->  | B14: 14
A15: =IF('3. Rate Classes'!L31=1, '3. Rate Classes'!C31, "") ->  | B15: 15
A16: =IF('3. Rate Classes'!L32=1, '3. Rate Classes'!C32, "") ->  | B16: 16
A17: =IF('3. Rate Classes'!L33=1, '3. Rate Classes'!C33, "") ->  | B17: 17
A18: =IF('3. Rate Classes'!L34=1, '3. Rate Classes'!C34, "") ->  | B18: 18
A19: =IF('3. Rate Classes'!L35=1, '3. Rate Classes'!C35, "") ->  | B19: 19
A20: =IF('3. Rate Classes'!L36=1, '3. Rate Classes'!C36, "") ->  | B20: 20
A21: =IF('3. Rate Classes'!L37=1, '3. Rate Classes'!C37, "") ->  | B21: 21
A22: =IF('3. Rate Classes'!L38=1, '3. Rate Classes'!C38, "") ->  | B22: 22

Sheet Sheet1
